Workbook

Sheet MY PROFILE
B6: My Food Tracker Profile | E6: My Nutrition Estimates | H6: My Daily Average Performance
B8: NAME | C8: John Connor | E8: DAILY CAL | F8: 2533 | H8: DAILY CAL | I8: =SUM('FOOD LOG'!E:E)/COUNT('FOOD LOG'!E:E) -> 732.2359748
B10: HEIGHT | C10: 67 | E10: FAT | F10: 0.2 | H10: FAT | I10: =(SUM('FOOD LOG'!F:F)*9)/(SUM('FOOD LOG'!E:E)) -> 0.3256311846
B12: WEIGHT | C12: 165 | E12: CARB | F12: 0.45 | H12: CARB | I12: =(SUM('FOOD LOG'!G:G)*4)/(SUM('FOOD LOG'!E:E)) -> 0.4070695153
B14: AGE | C14: 25 | E14: PROTEIN | F14: 0.35 | H14: PROTEIN | I14: =(SUM('FOOD LOG'!H:H)*4)/(SUM('FOOD LOG'!E:E)) -> 0.2701610437
B16: GENDER | C16: M | E16: VIT A | F16: 900 | H16: VIT A | I16: =SUM('FOOD LOG'!I:I)/COUNT('FOOD LOG'!I:I)*3.3 -> 14.73613187
B18: BMI | C18: 25.8 | E18: VIT C | F18: 90 | H18: VIT C | I18: =SUM('FOOD LOG'!J:J)/COUNT('FOOD LOG'!J:J) -> 1.879340659
E20: VIT D | F20: 5 | H20: VIT D | I20: =SUM('FOOD LOG'!K:K)/COUNT('FOOD LOG'!K:K)*40 -> 47.46813187
E22: CALCIUM | F22: 1000 | H22: CALCIUM | I22: =SUM('FOOD LOG'!L:L)/COUNT('FOOD LOG'!L:L) -> 153.3130769
E24: IRON | F24: 8 | H24: IRON | I24: =SUM('FOOD LOG'!M:M)/COUNT('FOOD LOG'!M:M) -> 4.970818681
E26: FIBER | F26: 38 | H26: FIBER | I26: =SUM('FOOD LOG'!N:N)/COUNT('FOOD LOG'!N:N) -> 124.2738681
B29: A Project by John Connor

Sheet FOOD LOG
A3: DATE | B3: MEAL | C3: FOOD | D3: AMT (g) | E3: CALORIES | F3: FAT (g) | G3: CARB (g) | H3: PROTEIN (g) | I3: VIT A (IU) | J3: VIT C (mg) | K3: VIT D (IU) | L3: CALCIUM (mg) | M3: IRON (mg) | N3: FIBER (g) | O3: URL
A4: 4/1/2015 | B4: Breakfast | C4: BURGER KING, Premium Fish Sandwich | D4: 200 | E4: 520 | F4: 24 | G4: 54 | H4: 20 | I4: 0 | J4: 0 | K4: 0 | L4: 74 | M4: 3 | N4: 1.8 | O4: http://www.nutritionvalue.org/BURGER_KING%2C_Premium_Fish_Sandwich_nutritional_value.html
A5: 4/1/2015 | B5: Lunch | C5: Bread, toasted, egg | D5: 150 | E5: 472.5 | F5: 9 | G5: 79.5 | H5: 16.5 | I5: 0 | J5: 0 | K5: 1.5 | L5: 153 | M5: 4.95 | N5: 3.75 | O5: http://www.nutritionvalue.org/Bread%2C_toasted%2C_egg_nutritional_value.html
A6: 4/1/2015 | B6: Dinner | C6: Restaurant, breaded and fried, shrimp, family style | D6: 300 | E6: 924 | F6: 57 | G6: 66 | H6: 39 | I6: 0 | J6: 0 | K6: 0 | L6: 126 | M6: 3.3 | N6: 4.5 | O6: http://www.nutritionvalue.org/Restaurant%2C_breaded_and_fried%2C_shrimp%2C_family_style_nutritional_value.html
A7: 4/2/2015 | B7: Breakfast | C7: APPLEBEE'S, Double Crunch Shrimp | D7: 222 | E7: 717.06 | F7: 42.18 | G7: 57.72 | H7: 26.64 | I7: 0 | J7: 0 | K7: 0 | L7: 99.9 | M7: 2.22 | N7: 5.772 | O7: http://www.nutritionvalue.org/APPLEBEE%27S%2C_Double_Crunch_Shrimp_nutritional_value.html
A8: 4/2/2015 | B8: Lunch | C8: Quinoa, uncooked | D8: 612 | E8: 2252.16 | F8: 36.72 | G8: 391.68 | H8: 85.68 | I8: 0 | J8: 0 | K8: 0 | L8: 287.64 | M8: 27.54 | N8: 4455.36 | O8: http://www.nutritionvalue.org/Quinoa%2C_uncooked_nutritional_value.html
A9: 4/2/2015 | B9: Dinner | C9: Restaurant, lasagna with meat, Italian | D9: 500 | E9: 925 | F9: 55 | G9: 55 | H9: 55 | I9: 5 | J9: 0 | K9: 0 | L9: 985 | M9: 3.5 | N9: 7.5 | O9: http://www.nutritionvalue.org/Restaurant%2C_lasagna_with_meat%2C_Italian_nutritional_value.html
A10: 4/3/2015 | B10: Snack | C10: OLIVE GARDEN, lasagna classico | D10: 40 | E10: 73.6 | F10: 4.4 | G10: 4 | H10: 4.4 | I10: 0 | J10: 0 | K10: 0 | L10: 84.4 | M10: 0.28 | N10: 0.64 | O10: http://www.nutritionvalue.org/OLIVE_GARDEN%2C_lasagna_classico_nutritional_value.html
A11: 4/3/2015 | B11: Lunch | C11: CARRABBA'S ITALIAN GRILL, spaghetti with meat sauce | D11: 700 | E11: 854 | F11: 21 | G11: 112 | H11: 35 | I11: 0 | J11: 0 | K11: 0 | L11: 105 | M11: 5.6 | N11: 10.5 | O11: http://www.nutritionvalue.org/CARRABBA%27S_ITALIAN_GRILL%2C_spaghetti_with_meat_sauce_nutritional_value.html
A12: 4/3/2015 | B12: Dinner | C12: Restaurant, spaghetti with meat sauce, Italian | D12: 434 | E12: 121 | F12: 3 | G12: 16 | H12: 5 | I12: 0 | J12: 0 | K12: 0 | L12: 17 | M12: 0.9 | N12: 1.6 | O12: http://www.nutritionvalue.org/Restaurant%2C_spaghetti_with_meat_sauce%2C_Italian_nutritional_value.html
A13: 4/4/2015 | B13: Breakfast | C13: OLIVE GARDEN, spaghetti with meat sauce | D13: 541 | E13: 654.61 | F13: 16.23 | G13: 91.97 | H13: 27.05 | I13: 0 | J13: 0 | K13: 0 | L13: 81.15 | M13: 5.41 | N13: 9.197 | O13: http://www.nutritionvalue.org/OLIVE_GARDEN%2C_spaghetti_with_meat_sauce_nutritional_value.html
A14: 4/4/2015 | B14: Snack | C14: CARRABBA'S ITALIAN GRILL, spaghetti with pomodoro sauce | D14: 56 | E14: 58.24 | F14: 0.56 | G14: 10.64 | H14: 1.68 | I14: 0 | J14: 0 | K14: 0 | L14: 9.52 | M14: 0.392 | N14: 0.952 | O14: http://www.nutritionvalue.org/CARRABBA%27S_ITALIAN_GRILL%2C_spaghetti_with_pomodoro_sauce_nutritional_value.html
A15: 4/4/2015 | B15: Lunch | C15: WENDY'S, single, DAVE'S Hot 'N Juicy 1/4 LB | D15: 456 | E15: 1222.08 | F15: 72.96 | G15: 82.08 | H15: 63.84 | I15: 0 | J15: 0 | K15: 0 | L15: 332.88 | M15: 10.488 | N15: 5.016 | O15: http://www.nutritionvalue.org/WENDY%27S%2C_single%2C_DAVE%27S_Hot_%27N_Juicy_1%252F4_LB_nutritional_value.html
A16: 4/4/2015 | B16: Dinner | C16: Vegetable juice cocktail, canned, low sodium | D16: 323 | E16: 19 | F16: 0 | G16: 3.8 | H16: 0 | I16: 4 | J16: 0 | K16: 0 | L16: 15 | M16: 0.2 | N16: 0.5 | O16: http://www.nutritionvalue.org/Vegetable_juice_cocktail%2C_canned%2C_low_sodium_nutritional_value.html
A17: 4/5/2015 | B17: Breakfast | C17: Vegetable juice cocktail, canned | D17: 222 | E17: 42.18 | F17: 0 | G17: 8.658 | H17: 0 | I17: 8.88 | J17: 0 | K17: 0 | L17: 31.08 | M17: 0.444 | N17: 1.11 | O17: http://www.nutritionvalue.org/Vegetable_juice_cocktail%2C_canned_nutritional_value.html
A18: 4/5/2015 | B18: Lunch | C18: Veal, roasted, cooked, separable lean and fat, sirloin | D18: 454 | E18: 917.08 | F18: 45.4 | G18: 0 | H18: 113.5 | I18: 0 | J18: 0 | K18: 0 | L18: 59.02 | M18: 4.086 | N18: 0 | O18: http://www.nutritionvalue.org/Veal%2C_roasted%2C_cooked%2C_separable_lean_and_fat%2C_sirloin_nutritional_value.html
A19: 4/5/2015 | B19: Dinner | C19: Watermelon, raw | D19: 787 | E19: 236.1 | F19: 0 | G19: 59.812 | H19: 0 | I19: 7.87 | J19: 31.48 | K19: 0 | L19: 55.09 | M19: 1.574 | N19: 3.148 | O19: http://www.nutritionvalue.org/Watermelon%2C_raw_nutritional_value.html
A20: 4/6/2015 | B20: Lunch | C20: Veal, raw, separable lean and fat, arm, shoulder | D20: 888 | E20: 1172.16 | F20: 44.4 | G20: 0 | H20: 168.72 | I20: 0 | J20: 0 | K20: 0 | L20: 186.48 | M20: 8.88 | N20: 0 | O20: http://www.nutritionvalue.org/Veal%2C_raw%2C_separable_lean_and_fat%2C_arm%2C_shoulder_nutritional_value.html
A21: 4/6/2015 | B21: Dinner | C21: Veal, pan-fried, cooked, ground | D21: 555 | E21: 1193.25 | F21: 66.6 | G21: 8.325 | H21: 144.3 | I21: 0 | J21: 0 | K21: 27.75 | L21: 99.9 | M21: 8.325 | N21: 0 | O21: http://www.nutritionvalue.org/Veal%2C_pan-fried%2C_cooked%2C_ground_nutritional_value.html
A22: 4/7/2015 | B22: Breakfast | C22: Turkey, roasted, meat only, enhanced, from whole bird, thigh | D22: 444 | E22: 701.52 | F22: 26.64 | G22: 0 | H22: 115.44 | I22: 0 | J22: 0 | K22: 0 | L22: 71.04 | M22: 4.44 | N22: 0 | O22: http://www.nutritionvalue.org/Turkey%2C_roasted%2C_meat_only%2C_enhanced%2C_from_whole_bird%2C_thigh_nutritional_value.html
A23: 4/7/2015 | B23: Lunch | C23: Turkey, roasted, meat only, enhanced, whole | D23: 999 | E23: 1398.6 | F23: 29.97 | G23: 0 | H23: 269.73 | I23: 0 | J23: 0 | K23: 0 | L23: 139.86 | M23: 6.993 | N23: 0 | O23: http://www.nutritionvalue.org/Turkey%2C_roasted%2C_meat_only%2C_enhanced%2C_whole_nutritional_value.html
A24: 4/8/2015 | B24: Breakfast | C24: BURGER KING, Premium Fish Sandwich | D24: 50 | E24: 130 | F24: 6 | G24: 13.5 | H24: 5 | I24: 0 | J24: 0 | K24: 0 | L24: 18.5 | M24: 0.75 | N24: 0.45 | O24: http://www.nutritionvalue.org/BURGER_KING%2C_Premium_Fish_Sandwich_nutritional_value.html
A25: 4/8/2015 | B25: Lunch | C25: Bread, toasted, egg | D25: 300 | E25: 945 | F25: 18 | G25: 159 | H25: 33 | I25: 0 | J25: 0 | K25: 3 | L25: 306 | M25: 9.9 | N25: 7.5 | O25: http://www.nutritionvalue.org/Bread%2C_toasted%2C_egg_nutritional_value.html
A26: 4/8/2015 | B26: Dinner | C26: Restaurant, breaded and fried, shrimp, family style | D26: 485 | E26: 1493.8 | F26: 92.15 | G26: 106.7 | H26: 63.05 | I26: 0 | J26: 0 | K26: 0 | L26: 203.7 | M26: 5.335 | N26: 7.275 | O26: http://www.nutritionvalue.org/Restaurant%2C_breaded_and_fried%2C_shrimp%2C_family_style_nutritional_value.html
A27: 4/9/2015 | B27: Breakfast | C27: APPLEBEE'S, Double Crunch Shrimp | D27: 444 | E27: 1434.12 | F27: 84.36 | G27: 115.44 | H27: 53.28 | I27: 0 | J27: 0 | K27: 0 | L27: 199.8 | M27: 4.44 | N27: 11.544 | O27: http://www.nutritionvalue.org/APPLEBEE%27S%2C_Double_Crunch_Shrimp_nutritional_value.html
A28: 4/9/2015 | B28: Lunch | C28: Quinoa, uncooked | D28: 200 | E28: 736 | F28: 12 | G28: 128 | H28: 28 | I28: 0 | J28: 0 | K28: 0 | L28: 94 | M28: 9 | N28: 1456 | O28: http://www.nutritionvalue.org/Quinoa%2C_uncooked_nutritional_value.html
A29: 4/9/2015 | B29: Dinner | C29: Restaurant, lasagna with meat, Italian | D29: 278 | E29: 514.3 | F29: 30.58 | G29: 30.58 | H29: 30.58 | I29: 2.78 | J29: 0 | K29: 0 | L29: 547.66 | M29: 1.946 | N29: 4.17 | O29: http://www.nutritionvalue.org/Restaurant%2C_lasagna_with_meat%2C_Italian_nutritional_value.html
A30: 4/10/2015 | B30: Snack | C30: OLIVE GARDEN, lasagna classico | D30: 68 | E30: 125.12 | F30: 7.48 | G30: 6.8 | H30: 7.48 | I30: 0 | J30: 0 | K30: 0 | L30: 143.48 | M30: 0.476 | N30: 1.088 | O30: http://www.nutritionvalue.org/OLIVE_GARDEN%2C_lasagna_classico_nutritional_value.html
A31: 4/10/2015 | B31: Lunch | C31: CARRABBA'S ITALIAN GRILL, spaghetti with meat sauce | D31: 78 | E31: 95.16 | F31: 2.34 | G31: 12.48 | H31: 3.9 | I31: 0 | J31: 0 | K31: 0 | L31: 11.7 | M31: 0.624 | N31: 1.17 | O31: http://www.nutritionvalue.org/CARRABBA%27S_ITALIAN_GRILL%2C_spaghetti_with_meat_sauce_nutritional_value.html
A32: 4/11/2015 | B32: Dinner | C32: Restaurant, spaghetti with meat sauce, Italian | D32: 868 | E32: 1050.28 | F32: 26.04 | G32: 138.88 | H32: 43.4 | I32: 0 | J32: 0 | K32: 0 | L32: 147.56 | M32: 7.812 | N32: 13.888 | O32: http://www.nutritionvalue.org/Restaurant%2C_spaghetti_with_meat_sauce%2C_Italian_nutritional_value.html
A33: 4/11/2015 | B33: Breakfast | C33: OLIVE GARDEN, spaghetti with meat sauce | D33: 230 | E33: 278.3 | F33: 6.9 | G33: 39.1 | H33: 11.5 | I33: 0 | J33: 0 | K33: 0 | L33: 34.5 | M33: 2.3 | N33: 3.91 | O33: http://www.nutritionvalue.org/OLIVE_GARDEN%2C_spaghetti_with_meat_sauce_nutritional_value.html
A34: 4/11/2015 | B34: Snack | C34: CARRABBA'S ITALIAN GRILL, spaghetti with pomodoro sauce | D34: 258 | E34: 268.32 | F34: 2.58 | G34: 49.02 | H34: 7.74 | I34: 0 | J34: 0 | K34: 0 | L34: 43.86 | M34: 1.806 | N34: 4.386 | O34: http://www.nutritionvalue.org/CARRABBA%27S_ITALIAN_GRILL%2C_spaghetti_with_pomodoro_sauce_nutritional_value.html
A35: 4/12/2015 | B35: Lunch | C35: WENDY'S, single, DAVE'S Hot 'N Juicy 1/4 LB | D35: 789 | E35: 2114.52 | F35: 126.24 | G35: 142.02 | H35: 110.46 | I35: 0 | J35: 0 | K35: 0 | L35: 575.97 | M35: 18.147 | N35: 8.679 | O35: http://www.nutritionvalue.org/WENDY%27S%2C_single%2C_DAVE%27S_Hot_%27N_Juicy_1%252F4_LB_nutritional_value.html
A36: 4/12/2015 | B36: Dinner | C36: Vegetable juice cocktail, canned, low sodium | D36: 363 | E36: 68.97 | F36: 0 | G36: 13.794 | H36: 0 | I36: 14.52 | J36: 0 | K36: 0 | L36: 54.45 | M36: 0.726 | N36: 1.815 | O36: http://www.nutritionvalue.org/Vegetable_juice_cocktail%2C_canned%2C_low_sodium_nutritional_value.html
A37: 4/12/2015 | B37: Breakfast | C37: Vegetable juice cocktail, canned | D37: 252 | E37: 47.88 | F37: 0 | G37: 9.828 | H37: 0 | I37: 10.08 | J37: 0 | K37: 0 | L37: 35.28 | M37: 0.504 | N37: 1.26 | O37: http://www.nutritionvalue.org/Vegetable_juice_cocktail%2C_canned_nutritional_value.html
A38: 4/13/2015 | B38: Lunch | C38: Veal, roasted, cooked, separable lean and fat, sirloin | D38: 187 | E38: 377.74 | F38: 18.7 | G38: 0 | H38: 46.75 | I38: 0 | J38: 0 | K38: 0 | L38: 24.31 | M38: 1.683 | N38: 0 | O38: http://www.nutritionvalue.org/Veal%2C_roasted%2C_cooked%2C_separable_lean_and_fat%2C_sirloin_nutritional_value.html
A39: 4/13/2015 | B39: Dinner | C39: Watermelon, raw | D39: 546 | E39: 163.8 | F39: 0 | G39: 41.496 | H39: 0 | I39: 5.46 | J39: 21.84 | K39: 0 | L39: 38.22 | M39: 1.092 | N39: 2.184 | O39: http://www.nutritionvalue.org/Watermelon%2C_raw_nutritional_value.html
A40: 4/14/2015 | B40: Lunch | C40: Veal, raw, separable lean and fat, arm, shoulder | D40: 744 | E40: 982.08 | F40: 37.2 | G40: 0 | H40: 141.36 | I40: 0 | J40: 0 | K40: 0 | L40: 156.24 | M40: 7.44 | N40: 0 | O40: http://www.nutritionvalue.org/Veal%2C_raw%2C_separable_lean_and_fat%2C_arm%2C_shoulder_nutritional_value.html
A41: 4/14/2015 | B41: Dinner | C41: Veal, pan-fried, cooked, ground | D41: 222 | E41: 477.3 | F41: 26.64 | G41: 3.33 | H41: 57.72 | I41: 0 | J41: 0 | K41: 11.1 | L41: 39.96 | M41: 3.33 | N41: 0 | O41: http://www.nutritionvalue.org/Veal%2C_pan-fried%2C_cooked%2C_ground_nutritional_value.html
A42: 4/15/2015 | B42: Breakfast | C42: Turkey, roasted, meat only, enhanced, from whole bird, thigh | D42: 555 | E42: 876.9 | F42: 33.3 | G42: 0 | H42: 144.3 | I42: 0 | J42: 0 | K42: 0 | L42: 88.8 | M42: 5.55 | N42: 0 | O42: http://www.nutritionvalue.org/Turkey%2C_roasted%2C_meat_only%2C_enhanced%2C_from_whole_bird%2C_thigh_nutritional_value.html
A43: 4/15/2015 | B43: Lunch | C43: Turkey, roasted, meat only, enhanced, whole | D43: 333 | E43: 466.2 | F43: 9.99 | G43: 0 | H43: 89.91 | I43: 0 | J43: 0 | K43: 0 | L43: 46.62 | M43: 2.331 | N43: 0 | O43: http://www.nutritionvalue.org/Turkey%2C_roasted%2C_meat_only%2C_enhanced%2C_whole_nutritional_value.html
A44: 4/16/2015 | B44: Breakfast | C44: Cheese, with vegetables, cottage | D44: 231 | E44: 219.45 | F44: 9.24 | G44: 71.61 | H44: 25.41 | I44: 0 | J44: 0 | K44: 0 | L44: 129.36 | M44: 0.231 | N44: 0.231 | O44: http://www.nutritionvalue.org/Cheese%2C_with_vegetables%2C_cottage_nutritional_value.html
A45: 4/16/2015 | B45: Lunch | C45: Macaroni, enriched, dry, vegetable | D45: 565 | E45: 2073.55 | F45: 5.65 | G45: 423.75 | H45: 73.45 | I45: 0 | J45: 0 | K45: 0 | L45: 192.1 | M45: 23.73 | N45: 24.295 | O45: http://www.nutritionvalue.org/Macaroni%2C_enriched%2C_dry%2C_vegetable_nutritional_value.html
A46: 4/16/2015 | B46: Dinner | C46: Egg rolls, prepared, frozen, vegetable | D46: 787 | E46: 1684.18 | F46: 55.09 | G46: 251.84 | H46: 47.22 | I46: 70.83 | J46: 7.87 | K46: 0 | L46: 393.5 | M46: 14.953 | N46: 18.888 | O46: http://www.nutritionvalue.org/Egg_rolls%2C_prepared%2C_frozen%2C_vegetable_nutritional_value.html
A47: 4/17/2015 | B47: Snack | C47: Tomato and vegetable juice, low sodium | D47: 453 | E47: 99.66 | F47: 0 | G47: 20.838 | H47: 0 | I47: 4.53 | J47: 27.18 | K47: 0 | L47: 49.83 | M47: 1.812 | N47: 3.624 | O47: http://www.nutritionvalue.org/Tomato_and_vegetable_juice%2C_low_sodium_nutritional_value.html
A48: 4/17/2015 | B48: Lunch | C48: HEALTHY REQUEST, condensed, Vegetable Soup | D48: 254 | E48: 200.66 | F48: 0 | G48: 40.64 | H48: 7.62 | I48: 0 | J48: 0 | K48: 0 | L48: 40.64 | M48: 1.27 | N48: 6.096 | O48: http://www.nutritionvalue.org/HEALTHY_REQUEST%2C_condensed%2C_Vegetable_Soup_nutritional_value.html
A49: 4/17/2015 | B49: Dinner | C49: KASHI, Fire Roasted Vegetable Crackers, TLC | D49: 785 | E49: 3053.65 | F49: 94.2 | G49: 510.25 | H49: 94.2 | I49: 0 | J49: 0 | K49: 0 | L49: 525.95 | M49: 18.84 | N49: 68.295 | O49: http://www.nutritionvalue.org/KASHI%2C_Fire_Roasted_Vegetable_Crackers%2C_TLC_nutritional_value.html
A50: 4/18/2015 | B50: Breakfast | C50: Restaurant, chicken and vegetables, Chinese | D50: 452 | E50: 429.4 | F50: 18.08 | G50: 24.408 | H50: 36.16 | I50: 13.56 | J50: 18.08 | K50: 0 | L50: 90.4 | M50: 2.26 | N50: 4.068 | O50: http://www.nutritionvalue.org/Restaurant%2C_chicken_and_vegetables%2C_Chinese_nutritional_value.html
A51: 4/18/2015 | B51: Snack | C51: Fast foods, french fried in vegetable oil, potato | D51: 789 | E51: 312 | F51: 15 | G51: 41 | H51: 3 | I51: 0 | J51: 0 | K51: 0 | L51: 18 | M51: 0.8 | N51: 3.8 | O51: http://www.nutritionvalue.org/Fast_foods%2C_french_fried_in_vegetable_oil%2C_potato_nutritional_value.html
A52: 4/18/2015 | B52: Lunch | C52: WORTHINGTON Vegetable Steaks, unprepared, canned | D52: 423 | E52: 477.99 | F52: 4.23 | G52: 21.573 | H52: 88.83 | I52: 0 | J52: 0 | K52: 0 | L52: 25.38 | M52: 16.074 | N52: 9.306 | O52: http://www.nutritionvalue.org/WORTHINGTON_Vegetable_Steaks%2C_unprepared%2C_canned_nutritional_value.html
A53: 4/18/2015 | B53: Dinner | C53: Restaurant, without meat, vegetable lo mein, Chinese | D53: 89 | E53: 107.69 | F53: 1.78 | G53: 17.8 | H53: 3.56 | I53: 0 | J53: 0 | K53: 0 | L53: 18.69 | M53: 0.89 | N53: 1.157 | O53: http://www.nutritionvalue.org/Restaurant%2C_without_meat%2C_vegetable_lo_mein%2C_Chinese_nutritional_value.html
A54: 4/19/2015 | B54: Breakfast | C54: CAMPBELL'S CHUNKY Soups, Beef with Country Vegetables Soup | D54: 343 | E54: 181.79 | F54: 3.43 | G54: 25.382 | H54: 10.29 | I54: 30.87 | J54: 0 | K54: 0 | L54: 27.44 | M54: 1.715 | N54: 4.116 | O54: http://www.nutritionvalue.org/CAMPBELL%27S_CHUNKY_Soups%2C_Beef_with_Country_Vegetables_Soup_nutritional_value.html
A55: 4/20/2015 | B55: Lunch | C55: CAMPBELL'S CHUNKY Soups, Old Fashioned Vegetable Beef Soup | D55: 555 | E55: 271.95 | F55: 5.55 | G55: 34.41 | H55: 16.65 | I55: 11.1 | J55: 0 | K55: 0 | L55: 94.35 | M55: 2.775 | N55: 7.215 | O55: http://www.nutritionvalue.org/CAMPBELL%27S_CHUNKY_Soups%2C_Old_Fashioned_Vegetable_Beef_Soup_nutritional_value.html
A56: 4/20/2015 | B56: Dinner | C56: Snacks, TERRA CHIPS, HAIN CELESTIAL GROUP, vegetable chips | D56: 777 | E56: 4017.09 | F56: 233.1 | G56: 450.66 | H56: 31.08 | I56: 69.93 | J56: 0 | K56: 0 | L56: 613.83 | M56: 12.432 | N56: 885.78 | O56: http://www.nutritionvalue.org/Snacks%2C_TERRA_CHIPS%2C_HAIN_CELESTIAL_GROUP%2C_vegetable_chips_nutritional_value.html
A57: 4/21/2015 | B57: Lunch | C57: CAMPBELL'S, Essential Antioxidants V8, V8 Vegetable Juice | D57: 343 | E57: 72.03 | F57: 0 | G57: 15.435 | H57: 0 | I57: 3.43 | J57: 6.86 | K57: 0 | L57: 54.88 | M57: 1.029 | N57: 2.744 | O57: http://www.nutritionvalue.org/CAMPBELL%27S%2C_Essential_Antioxidants_V8%2C_V8_Vegetable_Juice_nutritional_value.html
A58: 4/21/2015 | B58: Lunch | C58: Pizza, cooked, frozen, rising crust, meat and vegetable topping | D58: 232 | E58: 628.72 | F58: 27.84 | G58: 67.28 | H58: 30.16 | I58: 0 | J58: 0 | K58: 0 | L58: 359.6 | M58: 3.016 | N58: 5.336 | O58: http://www.nutritionvalue.org/Pizza%2C_cooked%2C_frozen%2C_rising_crust%2C_meat_and_vegetable_topping_nutritional_value.html
A59: 4/22/2015 | B59: Breakfast | C59: Restaurant, cheese ravioli with marinara sauce, Italian | D59: 333 | E59: 512.82 | F59: 16.65 | G59: 63.27 | H59: 23.31 | I59: 0 | J59: 0 | K59: 0 | L59: 399.6 | M59: 2.664 | N59: 3.996 | O59: http://www.nutritionvalue.org/Restaurant%2C_cheese_ravioli_with_marinara_sauce%2C_Italian_nutritional_value.html
A60: 4/22/2015 | B60: Lunch | C60: SPAGHETTIOS, SpaghettiOs RavioliOs Beef Ravioli in Meat Sauce | D60: 444 | E60: 470.64 | F60: 13.32 | G60: 66.6 | H60: 17.76 | I60: 0 | J60: 0 | K60: 26.64 | L60: 71.04 | M60: 3.108 | N60: 7.104 | O60: http://www.nutritionvalue.org/SPAGHETTIOS%2C_SpaghettiOs_RavioliOs_Beef_Ravioli_in_Meat_Sauce_nutritional_value.html
A61: 4/22/2015 | B61: Lunch | C61: Ravioli, includes regular and light entrees, not prepared, frozen, cheese with tomato sauce | D61: 232 | E61: 257.52 | F61: 4.64 | G61: 39.44 | H61: 9.28 | I61: 0 | J61: 0 | K61: 0 | L61: 183.28 | M61: 2.088 | N61: 3.248 | O61: http://www.nutritionvalue.org/Ravioli%2C_includes_regular_and_light_entrees%2C_not_prepared%2C_frozen%2C_cheese_with_tomato_sauce_nutritional_value.html
A62: 4/23/2015 | B62: Breakfast | C62: CAMPBELL'S CHUNKY Soups, Beef with Country Vegetables Soup | D62: 343 | E62: 53 | F62: 1 | G62: 7.4 | H62: 3 | I62: 9 | J62: 0 | K62: 0 | L62: 8 | M62: 0.5 | N62: 1.2 | O62: http://www.nutritionvalue.org/CAMPBELL%27S_CHUNKY_Soups%2C_Beef_with_Country_Vegetables_Soup_nutritional_value.html
A63: 4/24/2015 | B63: Lunch | C63: CAMPBELL'S CHUNKY Soups, Old Fashioned Vegetable Beef Soup | D63: 555 | E63: 49 | F63: 1 | G63: 6.2 | H63: 3 | I63: 2 | J63: 0 | K63: 0 | L63: 17 | M63: 0.5 | N63: 1.3 | O63: http://www.nutritionvalue.org/CAMPBELL%27S_CHUNKY_Soups%2C_Old_Fashioned_Vegetable_Beef_Soup_nutritional_value.html
A64: 4/25/2015 | B64: Dinner | C64: Snacks, TERRA CHIPS, HAIN CELESTIAL GROUP, vegetable chips | D64: 777 | E64: 517 | F64: 30 | G64: 58 | H64: 4 | I64: 9 | J64: 0 | K64: 0 | L64: 79 | M64: 1.6 | N64: 114 | O64: http://www.nutritionvalue.org/Snacks%2C_TERRA_CHIPS%2C_HAIN_CELESTIAL_GROUP%2C_vegetable_chips_nutritional_value.html
A65: 4/26/2015 | B65: Lunch | C65: CAMPBELL'S, Essential Antioxidants V8, V8 Vegetable Juice | D65: 343 | E65: 21 | F65: 0 | G65: 4.5 | H65: 0 | I65: 1 | J65: 2 | K65: 0 | L65: 16 | M65: 0.3 | N65: 0.8 | O65: http://www.nutritionvalue.org/CAMPBELL%27S%2C_Essential_Antioxidants_V8%2C_V8_Vegetable_Juice_nutritional_value.html
A66: 4/27/2015 | B66: Lunch | C66: Pizza, cooked, frozen, rising crust, meat and vegetable topping | D66: 232 | E66: 271 | F66: 12 | G66: 29 | H66: 13 | I66: 0 | J66: 0 | K66: 0 | L66: 155 | M66: 1.3 | N66: 2.3 | O66: http://www.nutritionvalue.org/Pizza%2C_cooked%2C_frozen%2C_rising_crust%2C_meat_and_vegetable_topping_nutritional_value.html
A67: 4/28/2015 | B67: Breakfast | C67: Restaurant, cheese ravioli with marinara sauce, Italian | D67: 333 | E67: 154 | F67: 5 | G67: 19 | H67: 7 | I67: 0 | J67: 0 | K67: 0 | L67: 120 | M67: 0.8 | N67: 1.2 | O67: http://www.nutritionvalue.org/Restaurant%2C_cheese_ravioli_with_marinara_sauce%2C_Italian_nutritional_value.html
A68: 4/28/2015 | B68: Lunch | C68: SPAGHETTIOS, SpaghettiOs RavioliOs Beef Ravioli in Meat Sauce | D68: 444 | E68: 106 | F68: 3 | G68: 15 | H68: 4 | I68: 0 | J68: 0 | K68: 6 | L68: 16 | M68: 0.7 | N68: 1.6 | O68: http://www.nutritionvalue.org/SPAGHETTIOS%2C_SpaghettiOs_RavioliOs_Beef_Ravioli_in_Meat_Sauce_nutritional_value.html
A69: 4/29/2015 | B69: Lunch | C69: Ravioli, includes regular and light entrees, not prepared, frozen, cheese with tomato sauce | D69: 232 | E69: 111 | F69: 2 | G69: 17 | H69: 4 | I69: 0 | J69: 0 | K69: 0 | L69: 79 | M69: 0.9 | N69: 1.4 | O69: http://www.nutritionvalue.org/Ravioli%2C_includes_regular_and_light_entrees%2C_not_prepared%2C_frozen%2C_cheese_with_tomato_sauce_nutritional_value.html
A70: 2015-05-01 | B70: Breakfast | C70: BURGER KING, Premium Fish Sandwich | D70: 200 | E70: 520 | F70: 25 | G70: 55 | H70: 20 | I70: 0 | J70: 0 | K70: 0 | L70: 75 | M70: 3 | N70: 1.8 | O70: http://www.nutritionvalue.org/BURGER_KING%2C_Premium_Fish_Sandwich_nutritional_value.html
A71: 2015-05-01 | B71: Lunch | C71: Bread, toasted, egg | D71: 150 | E71: 572.5 | F71: 9 | G71: 79.5 | H71: 16.5 | I71: 0 | J71: 0 | K71: 1.5 | L71: 153 | M71: 5.95 | N71: 3.75 | O71: http://www.nutritionvalue.org/Bread%2C_toasted%2C_egg_nutritional_value.html
A72: 2015-05-01 | B72: Dinner | C72: Restaurant, breaded and fried, shrimp, family style | D72: 300 | E72: 925 | F72: 57 | G72: 66 | H72: 39 | I72: 0 | J72: 0 | K72: 0 | L72: 126 | M72: 3.3 | N72: 5.5 | O72: http://www.nutritionvalue.org/Restaurant%2C_breaded_and_fried%2C_shrimp%2C_family_style_nutritional_value.html
A73: 2015-05-02 | B73: Breakfast | C73: APPLEBEE'S, Double Crunch Shrimp | D73: 222 | E73: 717.06 | F73: 52.18 | G73: 57.72 | H73: 26.65 | I73: 0 | J73: 0 | K73: 0 | L73: 99.9 | M73: 2.22 | N73: 5.772 | O73: http://www.nutritionvalue.org/APPLEBEE%27S%2C_Double_Crunch_Shrimp_nutritional_value.html
A74: 2015-05-02 | B74: Lunch | C74: Quinoa, uncooked | D74: 612 | E74: 2252.16 | F74: 36.72 | G74: 391.68 | H74: 85.68 | I74: 0 | J74: 0 | K74: 0 | L74: 287.65 | M74: 27.55 | N74: 5555.36 | O74: http://www.nutritionvalue.org/Quinoa%2C_uncooked_nutritional_value.html
A75: 2015-05-02 | B75: Dinner | C75: Restaurant, lasagna with meat, Italian | D75: 500 | E75: 925 | F75: 55 | G75: 55 | H75: 55 | I75: 5 | J75: 0 | K75: 0 | L75: 985 | M75: 3.5 | N75: 7.5 | O75: http://www.nutritionvalue.org/Restaurant%2C_lasagna_with_meat%2C_Italian_nutritional_value.html
A76: 2015-05-03 | B76: Snack | C76: OLIVE GARDEN, lasagna classico | D76: 50 | E76: 73.6 | F76: 5.5 | G76: 5 | H76: 5.5 | I76: 0 | J76: 0 | K76: 0 | L76: 85.5 | M76: 0.28 | N76: 0.65 | O76: http://www.nutritionvalue.org/OLIVE_GARDEN%2C_lasagna_classico_nutritional_value.html
A77: 2015-05-03 | B77: Lunch | C77: CARRABBA'S ITALIAN GRILL, spaghetti with meat sauce | D77: 700 | E77: 855 | F77: 21 | G77: 112 | H77: 35 | I77: 0 | J77: 0 | K77: 0 | L77: 105 | M77: 5.6 | N77: 10.5 | O77: http://www.nutritionvalue.org/CARRABBA%27S_ITALIAN_GRILL%2C_spaghetti_with_meat_sauce_nutritional_value.html
A78: 2015-05-03 | B78: Dinner | C78: Restaurant, spaghetti with meat sauce, Italian | D78: 535 | E78: 121 | F78: 3 | G78: 16 | H78: 5 | I78: 0 | J78: 0 | K78: 0 | L78: 17 | M78: 0.9 | N78: 1.6 | O78: http://www.nutritionvalue.org/Restaurant%2C_spaghetti_with_meat_sauce%2C_Italian_nutritional_value.html
A79: 2015-05-05 | B79: Breakfast | C79: OLIVE GARDEN, spaghetti with meat sauce | D79: 551 | E79: 655.61 | F79: 16.23 | G79: 91.97 | H79: 27.05 | I79: 0 | J79: 0 | K79: 0 | L79: 81.15 | M79: 5.51 | N79: 9.197 | O79: http://www.nutritionvalue.org/OLIVE_GARDEN%2C_spaghetti_with_meat_sauce_nutritional_value.html
A80: 2015-05-05 | B80: Snack | C80: CARRABBA'S ITALIAN GRILL, spaghetti with pomodoro sauce | D80: 56 | E80: 58.25 | F80: 0.56 | G80: 10.65 | H80: 1.68 | I80: 0 | J80: 0 | K80: 0 | L80: 9.52 | M80: 0.392 | N80: 0.952 | O80: http://www.nutritionvalue.org/CARRABBA%27S_ITALIAN_GRILL%2C_spaghetti_with_pomodoro_sauce_nutritional_value.html
A81: 2015-05-05 | B81: Lunch | C81: WENDY'S, single, DAVE'S Hot 'N Juicy 1/5 LB | D81: 556 | E81: 1222.08 | F81: 72.96 | G81: 82.08 | H81: 63.85 | I81: 0 | J81: 0 | K81: 0 | L81: 332.88 | M81: 10.588 | N81: 5.016 | O81: http://www.nutritionvalue.org/WENDY%27S%2C_single%2C_DAVE%27S_Hot_%27N_Juicy_1%252F5_LB_nutritional_value.html
A82: 2015-05-05 | B82: Dinner | C82: Vegetable juice cocktail, canned, low sodium | D82: 323 | E82: 19 | F82: 0 | G82: 3.8 | H82: 0 | I82: 5 | J82: 0 | K82: 0 | L82: 15 | M82: 0.2 | N82: 0.5 | O82: http://www.nutritionvalue.org/Vegetable_juice_cocktail%2C_canned%2C_low_sodium_nutritional_value.html
A83: 2015-05-05 | B83: Breakfast | C83: Vegetable juice cocktail, canned | D83: 222 | E83: 52.18 | F83: 0 | G83: 8.658 | H83: 0 | I83: 8.88 | J83: 0 | K83: 0 | L83: 31.08 | M83: 0.555 | N83: 1.11 | O83: http://www.nutritionvalue.org/Vegetable_juice_cocktail%2C_canned_nutritional_value.html
A84: 2015-05-05 | B84: Lunch | C84: Veal, roasted, cooked, separable lean and fat, sirloin | D84: 555 | E84: 917.08 | F84: 55.5 | G84: 0 | H84: 113.5 | I84: 0 | J84: 0 | K84: 0 | L84: 59.02 | M84: 5.086 | N84: 0 | O84: http://www.nutritionvalue.org/Veal%2C_roasted%2C_cooked%2C_separable_lean_and_fat%2C_sirloin_nutritional_value.html
A85: 2015-05-05 | B85: Dinner | C85: Watermelon, raw | D85: 787 | E85: 236.1 | F85: 0 | G85: 59.812 | H85: 0 | I85: 7.87 | J85: 31.58 | K85: 0 | L85: 55.09 | M85: 1.575 | N85: 3.158 | O85: http://www.nutritionvalue.org/Watermelon%2C_raw_nutritional_value.html
A86: 2015-05-06 | B86: Lunch | C86: Veal, raw, separable lean and fat, arm, shoulder | D86: 888 | E86: 1172.16 | F86: 55.5 | G86: 0 | H86: 168.72 | I86: 0 | J86: 0 | K86: 0 | L86: 186.58 | M86: 8.88 | N86: 0 | O86: http://www.nutritionvalue.org/Veal%2C_raw%2C_separable_lean_and_fat%2C_arm%2C_shoulder_nutritional_value.html
A87: 2015-05-06 | B87: Dinner | C87: Veal, pan-fried, cooked, ground | D87: 555 | E87: 1193.25 | F87: 66.6 | G87: 8.325 | H87: 155.3 | I87: 0 | J87: 0 | K87: 27.75 | L87: 99.9 | M87: 8.325 | N87: 0 | O87: http://www.nutritionvalue.org/Veal%2C_pan-fried%2C_cooked%2C_ground_nutritional_value.html
A88: 2015-05-07 | B88: Breakfast | C88: Turkey, roasted, meat only, enhanced, from whole bird, thigh | D88: 555 | E88: 701.52 | F88: 26.65 | G88: 0 | H88: 115.55 | I88: 0 | J88: 0 | K88: 0 | L88: 71.05 | M88: 5.55 | N88: 0 | O88: http://www.nutritionvalue.org/Turkey%2C_roasted%2C_meat_only%2C_enhanced%2C_from_whole_bird%2C_thigh_nutritional_value.html
A89: 2015-05-07 | B89: Lunch | C89: Turkey, roasted, meat only, enhanced, whole | D89: 999 | E89: 1398.6 | F89: 29.97 | G89: 0 | H89: 269.73 | I89: 0 | J89: 0 | K89: 0 | L89: 139.86 | M89: 6.993 | N89: 0 | O89: http://www.nutritionvalue.org/Turkey%2C_roasted%2C_meat_only%2C_enhanced%2C_whole_nutritional_value.html
A90: 2015-05-08 | B90: Breakfast | C90: BURGER KING, Premium Fish Sandwich | D90: 50 | E90: 130 | F90: 6 | G90: 13.5 | H90: 5 | I90: 0 | J90: 0 | K90: 0 | L90: 18.5 | M90: 0.75 | N90: 0.55 | O90: http://www.nutritionvalue.org/BURGER_KING%2C_Premium_Fish_Sandwich_nutritional_value.html
A91: 2015-05-08 | B91: Lunch | C91: Bread, toasted, egg | D91: 300 | E91: 955 | F91: 18 | G91: 159 | H91: 33 | I91: 0 | J91: 0 | K91: 3 | L91: 306 | M91: 9.9 | N91: 7.5 | O91: http://www.nutritionvalue.org/Bread%2C_toasted%2C_egg_nutritional_value.html
A92: 2015-05-08 | B92: Dinner | C92: Restaurant, breaded and fried, shrimp, family style | D92: 585 | E92: 1593.8 | F92: 92.15 | G92: 106.7 | H92: 63.05 | I92: 0 | J92: 0 | K92: 0 | L92: 203.7 | M92: 5.335 | N92: 7.275 | O92: http://www.nutritionvalue.org/Restaurant%2C_breaded_and_fried%2C_shrimp%2C_family_style_nutritional_value.html
A93: 2015-05-09 | B93: Breakfast | C93: APPLEBEE'S, Double Crunch Shrimp | D93: 555 | E93: 1535.12 | F93: 85.36 | G93: 115.55 | H93: 53.28 | I93: 0 | J93: 0 | K93: 0 | L93: 199.8 | M93: 5.55 | N93: 11.555 | O93: http://www.nutritionvalue.org/APPLEBEE%27S%2C_Double_Crunch_Shrimp_nutritional_value.html
A94: 2015-05-09 | B94: Lunch | C94: Quinoa, uncooked | D94: 200 | E94: 736 | F94: 12 | G94: 128 | H94: 28 | I94: 0 | J94: 0 | K94: 0 | L94: 95 | M94: 9 | N94: 1556 | O94: http://www.nutritionvalue.org/Quinoa%2C_uncooked_nutritional_value.html
A95: 2015-05-09 | B95: Dinner | C95: Restaurant, lasagna with meat, Italian | D95: 278 | E95: 515.3 | F95: 30.58 | G95: 30.58 | H95: 30.58 | I95: 2.78 | J95: 0 | K95: 0 | L95: 557.66 | M95: 1.956 | N95: 5.17 | O95: http://www.nutritionvalue.org/Restaurant%2C_lasagna_with_meat%2C_Italian_nutritional_value.html
A96: 2015-05-10 | B96: Snack | C96: OLIVE GARDEN, lasagna classico | D96: 68 | E96: 125.12 | F96: 7.58 | G96: 6.8 | H96: 7.58 | I96: 0 | J96: 0 | K96: 0 | L96: 153.58 | M96: 0.576 | N96: 1.088 | O96: http://www.nutritionvalue.org/OLIVE_GARDEN%2C_lasagna_classico_nutritional_value.html
A97: 2015-05-10 | B97: Lunch | C97: CARRABBA'S ITALIAN GRILL, spaghetti with meat sauce | D97: 78 | E97: 95.16 | F97: 2.35 | G97: 12.58 | H97: 3.9 | I97: 0 | J97: 0 | K97: 0 | L97: 11.7 | M97: 0.625 | N97: 1.17 | O97: http://www.nutritionvalue.org/CARRABBA%27S_ITALIAN_GRILL%2C_spaghetti_with_meat_sauce_nutritional_value.html
A98: 2015-05-11 | B98: Dinner | C98: Restaurant, spaghetti with meat sauce, Italian | D98: 868 | E98: 1050.28 | F98: 26.05 | G98: 138.88 | H98: 53.5 | I98: 0 | J98: 0 | K98: 0 | L98: 157.56 | M98: 7.812 | N98: 13.888 | O98: http://www.nutritionvalue.org/Restaurant%2C_spaghetti_with_meat_sauce%2C_Italian_nutritional_value.html
A99: 2015-05-11 | B99: Breakfast | C99: OLIVE GARDEN, spaghetti with meat sauce | D99: 230 | E99: 278.3 | F99: 6.9 | G99: 39.1 | H99: 11.5 | I99: 0 | J99: 0 | K99: 0 | L99: 35.5 | M99: 2.3 | N99: 3.91 | O99: http://www.nutritionvalue.org/OLIVE_GARDEN%2C_spaghetti_with_meat_sauce_nutritional_value.html
A100: 2015-05-11 | B100: Snack | C100: CARRABBA'S ITALIAN GRILL, spaghetti with pomodoro sauce | D100: 258 | E100: 268.32 | F100: 2.58 | G100: 59.02 | H100: 7.75 | I100: 0 | J100: 0 | K100: 0 | L100: 53.86 | M100: 1.806 | N100: 5.386 | O100: http://www.nutritionvalue.org/CARRABBA%27S_ITALIAN_GRILL%2C_spaghetti_with_pomodoro_sauce_nutritional_value.html
A101: 2015-05-12 | B101: Lunch | C101: WENDY'S, single, DAVE'S Hot 'N Juicy 1/5 LB | D101: 789 | E101: 2115.52 | F101: 126.25 | G101: 152.02 | H101: 110.56 | I101: 0 | J101: 0 | K101: 0 | L101: 575.97 | M101: 18.157 | N101: 8.679 | O101: http://www.nutritionvalue.org/WENDY%27S%2C_single%2C_DAVE%27S_Hot_%27N_Juicy_1%252F5_LB_nutritional_value.html
A102: 2015-05-12 | B102: Dinner | C102: Vegetable juice cocktail, canned, low sodium | D102: 363 | E102: 68.97 | F102: 0 | G102: 13.795 | H102: 0 | I102: 15.52 | J102: 0 | K102: 0 | L102: 55.55 | M102: 0.726 | N102: 1.815 | O102: http://www.nutritionvalue.org/Vegetable_juice_cocktail%2C_canned%2C_low_sodium_nutritional_value.html
A103: 2015-05-12 | B103: Breakfast | C103: Vegetable juice cocktail, canned | D103: 252 | E103: 57.88 | F103: 0 | G103: 9.828 | H103: 0 | I103: 10.08 | J103: 0 | K103: 0 | L103: 35.28 | M103: 0.505 | N103: 1.26 | O103: http://www.nutritionvalue.org/Vegetable_juice_cocktail%2C_canned_nutritional_value.html
A104: 2015-05-13 | B104: Lunch | C104: Veal, roasted, cooked, separable lean and fat, sirloin | D104: 187 | E104: 377.75 | F104: 18.7 | G104: 0 | H104: 56.75 | I104: 0 | J104: 0 | K104: 0 | L104: 25.31 | M104: 1.683 | N104: 0 | O104: http://www.nutritionvalue.org/Veal%2C_roasted%2C_cooked%2C_separable_lean_and_fat%2C_sirloin_nutritional_value.html
A105: 2015-05-13 | B105: Dinner | C105: Watermelon, raw | D105: 556 | E105: 163.8 | F105: 0 | G105: 51.596 | H105: 0 | I105: 5.56 | J105: 21.85 | K105: 0 | L105: 38.22 | M105: 1.092 | N105: 2.185 | O105: http://www.nutritionvalue.org/Watermelon%2C_raw_nutritional_value.html
A106: 2015-05-14 | B106: Lunch | C106: Veal, raw, separable lean and fat, arm, shoulder | D106: 755 | E106: 982.08 | F106: 37.2 | G106: 0 | H106: 151.36 | I106: 0 | J106: 0 | K106: 0 | L106: 156.25 | M106: 7.55 | N106: 0 | O106: http://www.nutritionvalue.org/Veal%2C_raw%2C_separable_lean_and_fat%2C_arm%2C_shoulder_nutritional_value.html
A107: 2015-05-14 | B107: Dinner | C107: Veal, pan-fried, cooked, ground | D107: 222 | E107: 577.3 | F107: 26.65 | G107: 3.33 | H107: 57.72 | I107: 0 | J107: 0 | K107: 11.1 | L107: 39.96 | M107: 3.33 | N107: 0 | O107: http://www.nutritionvalue.org/Veal%2C_pan-fried%2C_cooked%2C_ground_nutritional_value.html
A108: 2015-05-14 | B108: Breakfast | C108: Turkey, roasted, meat only, enhanced, from whole bird, thigh | D108: 555 | E108: 876.9 | F108: 33.3 | G108: 0 | H108: 155.3 | I108: 0 | J108: 0 | K108: 0 | L108: 88.8 | M108: 5.55 | N108: 0 | O108: http://www.nutritionvalue.org/Turkey%2C_roasted%2C_meat_only%2C_enhanced%2C_from_whole_bird%2C_thigh_nutritional_value.html
A109: 2015-05-15 | B109: Lunch | C109: Turkey, roasted, meat only, enhanced, whole | D109: 333 | E109: 566.2 | F109: 9.99 | G109: 0 | H109: 89.91 | I109: 0 | J109: 0 | K109: 0 | L109: 56.62 | M109: 2.331 | N109: 0 | O109: http://www.nutritionvalue.org/Turkey%2C_roasted%2C_meat_only%2C_enhanced%2C_whole_nutritional_value.html
A110: 2015-05-16 | B110: Breakfast | C110: Cheese, with vegetables, cottage | D110: 231 | E110: 219.55 | F110: 9.25 | G110: 71.61 | H110: 25.51 | I110: 0 | J110: 0 | K110: 0 | L110: 129.36 | M110: 0.231 | N110: 0.231 | O110: http://www.nutritionvalue.org/Cheese%2C_with_vegetables%2C_cottage_nutritional_value.html
A111: 2015-05-16 | B111: Lunch | C111: Macaroni, enriched, dry, vegetable | D111: 565 | E111: 2073.55 | F111: 5.65 | G111: 523.75 | H111: 73.55 | I111: 0 | J111: 0 | K111: 0 | L111: 192.1 | M111: 23.73 | N111: 25.295 | O111: http://www.nutritionvalue.org/Macaroni%2C_enriched%2C_dry%2C_vegetable_nutritional_value.html
A112: 2015-05-16 | B112: Dinner | C112: Egg rolls, prepared, frozen, vegetable | D112: 787 | E112: 1685.18 | F112: 55.09 | G112: 251.85 | H112: 57.22 | I112: 70.83 | J112: 7.87 | K112: 0 | L112: 393.5 | M112: 15.953 | N112: 18.888 | O112: http://www.nutritionvalue.org/Egg_rolls%2C_prepared%2C_frozen%2C_vegetable_nutritional_value.html
A113: 2015-05-17 | B113: Snack | C113: Tomato and vegetable juice, low sodium | D113: 553 | E113: 99.66 | F113: 0 | G113: 20.838 | H113: 0 | I113: 5.53 | J113: 27.18 | K113: 0 | L113: 59.83 | M113: 1.812 | N113: 3.625 | O113: http://www.nutritionvalue.org/Tomato_and_vegetable_juice%2C_low_sodium_nutritional_value.html
A114: 2015-05-17 | B114: Lunch | C114: HEALTHY REQUEST, condensed, Vegetable Soup | D114: 255 | E114: 200.66 | F114: 0 | G114: 50.65 | H114: 7.62 | I114: 0 | J114: 0 | K114: 0 | L114: 50.65 | M114: 1.27 | N114: 6.096 | O114: http://www.nutritionvalue.org/HEALTHY_REQUEST%2C_condensed%2C_Vegetable_Soup_nutritional_value.html
A115: 2015-05-17 | B115: Dinner | C115: KASHI, Fire Roasted Vegetable Crackers, TLC | D115: 785 | E115: 3053.65 | F115: 95.2 | G115: 510.25 | H115: 95.2 | I115: 0 | J115: 0 | K115: 0 | L115: 525.95 | M115: 18.85 | N115: 68.295 | O115: http://www.nutritionvalue.org/KASHI%2C_Fire_Roasted_Vegetable_Crackers%2C_TLC_nutritional_value.html
A116: 2015-05-18 | B116: Breakfast | C116: Restaurant, chicken and vegetables, Chinese | D116: 552 | E116: 529.5 | F116: 18.08 | G116: 25.508 | H116: 36.16 | I116: 13.56 | J116: 18.08 | K116: 0 | L116: 90.5 | M116: 2.26 | N116: 5.068 | O116: http://www.nutritionvalue.org/Restaurant%2C_chicken_and_vegetables%2C_Chinese_nutritional_value.html
A117: 2015-05-18 | B117: Snack | C117: Fast foods, french fried in vegetable oil, potato | D117: 789 | E117: 312 | F117: 15 | G117: 51 | H117: 3 | I117: 0 | J117: 0 | K117: 0 | L117: 18 | M117: 0.8 | N117: 3.8 | O117: http://www.nutritionvalue.org/Fast_foods%2C_french_fried_in_vegetable_oil%2C_potato_nutritional_value.html
A118: 2015-05-18 | B118: Lunch | C118: WORTHINGTON Vegetable Steaks, unprepared, canned | D118: 523 | E118: 577.99 | F118: 5.23 | G118: 21.573 | H118: 88.83 | I118: 0 | J118: 0 | K118: 0 | L118: 25.38 | M118: 16.075 | N118: 9.306 | O118: http://www.nutritionvalue.org/WORTHINGTON_Vegetable_Steaks%2C_unprepared%2C_canned_nutritional_value.html
A119: 2015-05-18 | B119: Dinner | C119: Restaurant, without meat, vegetable lo mein, Chinese | D119: 89 | E119: 107.69 | F119: 1.78 | G119: 17.8 | H119: 3.56 | I119: 0 | J119: 0 | K119: 0 | L119: 18.69 | M119: 0.89 | N119: 1.157 | O119: http://www.nutritionvalue.org/Restaurant%2C_without_meat%2C_vegetable_lo_mein%2C_Chinese_nutritional_value.html
A120: 2015-05-19 | B120: Breakfast | C120: CAMPBELL'S CHUNKY Soups, Beef with Country Vegetables Soup | D120: 353 | E120: 181.79 | F120: 3.53 | G120: 25.382 | H120: 10.29 | I120: 30.87 | J120: 0 | K120: 0 | L120: 27.55 | M120: 1.715 | N120: 5.116 | O120: http://www.nutritionvalue.org/CAMPBELL%27S_CHUNKY_Soups%2C_Beef_with_Country_Vegetables_Soup_nutritional_value.html
A121: 2015-05-20 | B121: Lunch | C121: CAMPBELL'S CHUNKY Soups, Old Fashioned Vegetable Beef Soup | D121: 555 | E121: 271.95 | F121: 5.55 | G121: 35.51 | H121: 16.65 | I121: 11.1 | J121: 0 | K121: 0 | L121: 95.35 | M121: 2.775 | N121: 7.215 | O121: http://www.nutritionvalue.org/CAMPBELL%27S_CHUNKY_Soups%2C_Old_Fashioned_Vegetable_Beef_Soup_nutritional_value.html
A122: 2015-05-20 | B122: Dinner | C122: Snacks, TERRA CHIPS, HAIN CELESTIAL GROUP, vegetable chips | D122: 777 | E122: 5017.09 | F122: 233.1 | G122: 550.66 | H122: 31.08 | I122: 69.93 | J122: 0 | K122: 0 | L122: 613.83 | M122: 12.532 | N122: 885.78 | O122: http://www.nutritionvalue.org/Snacks%2C_TERRA_CHIPS%2C_HAIN_CELESTIAL_GROUP%2C_vegetable_chips_nutritional_value.html
A123: 2015-05-21 | B123: Lunch | C123: CAMPBELL'S, Essential Antioxidants V8, V8 Vegetable Juice | D123: 353 | E123: 72.03 | F123: 0 | G123: 15.535 | H123: 0 | I123: 3.53 | J123: 6.86 | K123: 0 | L123: 55.88 | M123: 1.029 | N123: 2.755 | O123: http://www.nutritionvalue.org/CAMPBELL%27S%2C_Essential_Antioxidants_V8%2C_V8_Vegetable_Juice_nutritional_value.html
A124: 2015-05-21 | B124: Lunch | C124: Pizza, cooked, frozen, rising crust, meat and vegetable topping | D124: 232 | E124: 628.72 | F124: 27.85 | G124: 67.28 | H124: 30.16 | I124: 0 | J124: 0 | K124: 0 | L124: 359.6 | M124: 3.016 | N124: 5.336 | O124: http://www.nutritionvalue.org/Pizza%2C_cooked%2C_frozen%2C_rising_crust%2C_meat_and_vegetable_topping_nutritional_value.html
A125: 2015-05-22 | B125: Breakfast | C125: Restaurant, cheese ravioli with marinara sauce, Italian | D125: 333 | E125: 512.82 | F125: 16.65 | G125: 63.27 | H125: 23.31 | I125: 0 | J125: 0 | K125: 0 | L125: 399.6 | M125: 2.665 | N125: 3.996 | O125: http://www.nutritionvalue.org/Restaurant%2C_cheese_ravioli_with_marinara_sauce%2C_Italian_nutritional_value.html
A126: 2015-05-22 | B126: Lunch | C126: SPAGHETTIOS, SpaghettiOs RavioliOs Beef Ravioli in Meat Sauce | D126: 555 | E126: 570.65 | F126: 13.32 | G126: 66.6 | H126: 17.76 | I126: 0 | J126: 0 | K126: 26.65 | L126: 71.05 | M126: 3.108 | N126: 7.105 | O126: http://www.nutritionvalue.org/SPAGHETTIOS%2C_SpaghettiOs_RavioliOs_Beef_Ravioli_in_Meat_Sauce_nutritional_value.html
A127: 2015-05-22 | B127: Lunch | C127: Ravioli, includes regular and light entrees, not prepared, frozen, cheese with tomato sauce | D127: 232 | E127: 257.52 | F127: 5.65 | G127: 39.55 | H127: 9.28 | I127: 0 | J127: 0 | K127: 0 | L127: 183.28 | M127: 2.088 | N127: 3.258 | O127: http://www.nutritionvalue.org/Ravioli%2C_includes_regular_and_light_entrees%2C_not_prepared%2C_frozen%2C_cheese_with_tomato_sauce_nutritional_value.html
A128: 2015-05-23 | B128: Breakfast | C128: CAMPBELL'S CHUNKY Soups, Beef with Country Vegetables Soup | D128: 343 | E128: 53 | F128: 1 | G128: 7.4 | H128: 3 | I128: 9 | J128: 0 | K128: 0 | L128: 8 | M128: 0.5 | N128: 1.2 | O128: http://www.nutritionvalue.org/CAMPBELL%27S_CHUNKY_Soups%2C_Beef_with_Country_Vegetables_Soup_nutritional_value.html
A129: 2015-05-25 | B129: Lunch | C129: CAMPBELL'S CHUNKY Soups, Old Fashioned Vegetable Beef Soup | D129: 555 | E129: 49 | F129: 1 | G129: 6.2 | H129: 3 | I129: 2 | J129: 0 | K129: 0 | L129: 17 | M129: 0.5 | N129: 1.3 | O129: http://www.nutritionvalue.org/CAMPBELL%27S_CHUNKY_Soups%2C_Old_Fashioned_Vegetable_Beef_Soup_nutritional_value.html
A130: 2015-05-25 | B130: Dinner | C130: Snacks, TERRA CHIPS, HAIN CELESTIAL GROUP, vegetable chips | D130: 777 | E130: 517 | F130: 30 | G130: 58 | H130: 4 | I130: 9 | J130: 0 | K130: 0 | L130: 79 | M130: 1.6 | N130: 114 | O130: http://www.nutritionvalue.org/Snacks%2C_TERRA_CHIPS%2C_HAIN_CELESTIAL_GROUP%2C_vegetable_chips_nutritional_value.html
A131: 2015-05-26 | B131: Lunch | C131: CAMPBELL'S, Essential Antioxidants V8, V8 Vegetable Juice | D131: 343 | E131: 21 | F131: 0 | G131: 4.5 | H131: 0 | I131: 1 | J131: 2 | K131: 0 | L131: 16 | M131: 0.3 | N131: 0.8 | O131: http://www.nutritionvalue.org/CAMPBELL%27S%2C_Essential_Antioxidants_V8%2C_V8_Vegetable_Juice_nutritional_value.html
A132: 2015-05-27 | B132: Lunch | C132: Pizza, cooked, frozen, rising crust, meat and vegetable topping | D132: 232 | E132: 271 | F132: 12 | G132: 29 | H132: 13 | I132: 0 | J132: 0 | K132: 0 | L132: 155 | M132: 1.3 | N132: 2.3 | O132: http://www.nutritionvalue.org/Pizza%2C_cooked%2C_frozen%2C_rising_crust%2C_meat_and_vegetable_topping_nutritional_value.html
A133: 2015-05-28 | B133: Breakfast | C133: Restaurant, cheese ravioli with marinara sauce, Italian | D133: 333 | E133: 154 | F133: 5 | G133: 19 | H133: 7 | I133: 0 | J133: 0 | K133: 0 | L133: 120 | M133: 0.8 | N133: 1.2 | O133: http://www.nutritionvalue.org/Restaurant%2C_cheese_ravioli_with_marinara_sauce%2C_Italian_nutritional_value.html
A134: 2015-05-28 | B134: Lunch | C134: SPAGHETTIOS, SpaghettiOs RavioliOs Beef Ravioli in Meat Sauce | D134: 444 | E134: 106 | F134: 3 | G134: 15 | H134: 4 | I134: 0 | J134: 0 | K134: 6 | L134: 16 | M134: 0.7 | N134: 1.6 | O134: http://www.nutritionvalue.org/SPAGHETTIOS%2C_SpaghettiOs_RavioliOs_Beef_Ravioli_in_Meat_Sauce_nutritional_value.html
A135: 2015-05-29 | B135: Lunch | C135: Ravioli, includes regular and light entrees, not prepared, frozen, cheese with tomato sauce | D135: 232 | E135: 111 | F135: 2 | G135: 17 | H135: 4 | I135: 0 | J135: 0 | K135: 0 | L135: 79 | M135: 0.9 | N135: 1.4 | O135: http://www.nutritionvalue.org/Ravioli%2C_includes_regular_and_light_entrees%2C_not_prepared%2C_frozen%2C_cheese_with_tomato_sauce_nutritional_value.html
A136: 2015-06-01 | B136: Breakfast | C136: BURGER KING, Premium Fish Sandwich | D136: 200 | E136: 520 | F136: 24 | G136: 54 | H136: 20 | I136: 0 | J136: 0 | K136: 0 | L136: 74 | M136: 3 | N136: 1.8 | O136: http://www.nutritionvalue.org/BURGER_KING%2C_Premium_Fish_Sandwich_nutritional_value.html
A137: 2015-06-01 | B137: Lunch | C137: Bread, toasted, egg | D137: 150 | E137: 472.5 | F137: 9 | G137: 79.5 | H137: 16.5 | I137: 0 | J137: 0 | K137: 1.5 | L137: 153 | M137: 4.95 | N137: 3.75 | O137: http://www.nutritionvalue.org/Bread%2C_toasted%2C_egg_nutritional_value.html
A138: 2015-06-01 | B138: Dinner | C138: Restaurant, breaded and fried, shrimp, family style | D138: 300 | E138: 924 | F138: 57 | G138: 66 | H138: 39 | I138: 0 | J138: 0 | K138: 0 | L138: 126 | M138: 3.3 | N138: 4.5 | O138: http://www.nutritionvalue.org/Restaurant%2C_breaded_and_fried%2C_shrimp%2C_family_style_nutritional_value.html
A139: 2015-06-02 | B139: Breakfast | C139: APPLEBEE'S, Double Crunch Shrimp | D139: 222 | E139: 717.06 | F139: 42.18 | G139: 57.72 | H139: 26.64 | I139: 0 | J139: 0 | K139: 0 | L139: 99.9 | M139: 2.22 | N139: 5.772 | O139: http://www.nutritionvalue.org/APPLEBEE%27S%2C_Double_Crunch_Shrimp_nutritional_value.html
A140: 2015-06-02 | B140: Lunch | C140: Quinoa, uncooked | D140: 612 | E140: 2252.16 | F140: 36.72 | G140: 391.68 | H140: 85.68 | I140: 0 | J140: 0 | K140: 0 | L140: 287.64 | M140: 27.54 | N140: 4455.36 | O140: http://www.nutritionvalue.org/Quinoa%2C_uncooked_nutritional_value.html
A141: 2015-06-02 | B141: Dinner | C141: Restaurant, lasagna with meat, Italian | D141: 500 | E141: 925 | F141: 55 | G141: 55 | H141: 55 | I141: 5 | J141: 0 | K141: 0 | L141: 985 | M141: 3.5 | N141: 7.5 | O141: http://www.nutritionvalue.org/Restaurant%2C_lasagna_with_meat%2C_Italian_nutritional_value.html
A142: 2015-06-03 | B142: Snack | C142: OLIVE GARDEN, lasagna classico | D142: 40 | E142: 73.6 | F142: 4.4 | G142: 4 | H142: 4.4 | I142: 0 | J142: 0 | K142: 0 | L142: 84.4 | M142: 0.28 | N142: 0.64 | O142: http://www.nutritionvalue.org/OLIVE_GARDEN%2C_lasagna_classico_nutritional_value.html
A143: 2015-06-03 | B143: Lunch | C143: CARRABBA'S ITALIAN GRILL, spaghetti with meat sauce | D143: 700 | E143: 854 | F143: 21 | G143: 112 | H143: 35 | I143: 0 | J143: 0 | K143: 0 | L143: 105 | M143: 5.6 | N143: 10.5 | O143: http://www.nutritionvalue.org/CARRABBA%27S_ITALIAN_GRILL%2C_spaghetti_with_meat_sauce_nutritional_value.html
A144: 2015-06-03 | B144: Dinner | C144: Restaurant, spaghetti with meat sauce, Italian | D144: 434 | E144: 121 | F144: 3 | G144: 16 | H144: 5 | I144: 0 | J144: 0 | K144: 0 | L144: 17 | M144: 0.9 | N144: 1.6 | O144: http://www.nutritionvalue.org/Restaurant%2C_spaghetti_with_meat_sauce%2C_Italian_nutritional_value.html
A145: 2015-06-06 | B145: Breakfast | C145: OLIVE GARDEN, spaghetti with meat sauce | D145: 541 | E145: 654.61 | F145: 16.23 | G145: 91.97 | H145: 27.05 | I145: 0 | J145: 0 | K145: 0 | L145: 81.15 | M145: 5.41 | N145: 9.197 | O145: http://www.nutritionvalue.org/OLIVE_GARDEN%2C_spaghetti_with_meat_sauce_nutritional_value.html
A146: 2015-06-06 | B146: Snack | C146: CARRABBA'S ITALIAN GRILL, spaghetti with pomodoro sauce | D146: 56 | E146: 58.24 | F146: 0.56 | G146: 10.64 | H146: 1.68 | I146: 0 | J146: 0 | K146: 0 | L146: 9.52 | M146: 0.392 | N146: 0.952 | O146: http://www.nutritionvalue.org/CARRABBA%27S_ITALIAN_GRILL%2C_spaghetti_with_pomodoro_sauce_nutritional_value.html
A147: 2015-06-06 | B147: Lunch | C147: WENDY'S, single, DAVE'S Hot 'N Juicy 1/4 LB | D147: 456 | E147: 1222.08 | F147: 72.96 | G147: 82.08 | H147: 63.84 | I147: 0 | J147: 0 | K147: 0 | L147: 332.88 | M147: 10.488 | N147: 5.016 | O147: http://www.nutritionvalue.org/WENDY%27S%2C_single%2C_DAVE%27S_Hot_%27N_Juicy_1%252F4_LB_nutritional_value.html
A148: 2015-06-06 | B148: Dinner | C148: Vegetable juice cocktail, canned, low sodium | D148: 323 | E148: 19 | F148: 0 | G148: 3.8 | H148: 0 | I148: 4 | J148: 0 | K148: 0 | L148: 15 | M148: 0.2 | N148: 0.5 | O148: http://www.nutritionvalue.org/Vegetable_juice_cocktail%2C_canned%2C_low_sodium_nutritional_value.html
A149: 2015-06-05 | B149: Breakfast | C149: Vegetable juice cocktail, canned | D149: 222 | E149: 42.18 | F149: 0 | G149: 8.658 | H149: 0 | I149: 8.88 | J149: 0 | K149: 0 | L149: 31.08 | M149: 0.444 | N149: 1.11 | O149: http://www.nutritionvalue.org/Vegetable_juice_cocktail%2C_canned_nutritional_value.html
A150: 2015-06-05 | B150: Lunch | C150: Veal, roasted, cooked, separable lean and fat, sirloin | D150: 454 | E150: 917.08 | F150: 45.4 | G150: 0 | H150: 113.5 | I150: 0 | J150: 0 | K150: 0 | L150: 59.02 | M150: 4.086 | N150: 0 | O150: http://www.nutritionvalue.org/Veal%2C_roasted%2C_cooked%2C_separable_lean_and_fat%2C_sirloin_nutritional_value.html
A151: 2015-06-05 | B151: Dinner | C151: Watermelon, raw | D151: 787 | E151: 236.1 | F151: 0 | G151: 59.812 | H151: 0 | I151: 7.87 | J151: 31.48 | K151: 0 | L151: 55.09 | M151: 1.574 | N151: 3.148 | O151: http://www.nutritionvalue.org/Watermelon%2C_raw_nutritional_value.html
A152: 2015-06-06 | B152: Lunch | C152: Veal, raw, separable lean and fat, arm, shoulder | D152: 888 | E152: 1172.16 | F152: 44.4 | G152: 0 | H152: 168.72 | I152: 0 | J152: 0 | K152: 0 | L152: 186.48 | M152: 8.88 | N152: 0 | O152: http://www.nutritionvalue.org/Veal%2C_raw%2C_separable_lean_and_fat%2C_arm%2C_shoulder_nutritional_value.html
A153: 2015-06-06 | B153: Dinner | C153: Veal, pan-fried, cooked, ground | D153: 555 | E153: 1193.25 | F153: 66.6 | G153: 8.325 | H153: 144.3 | I153: 0 | J153: 0 | K153: 27.75 | L153: 99.9 | M153: 8.325 | N153: 0 | O153: http://www.nutritionvalue.org/Veal%2C_pan-fried%2C_cooked%2C_ground_nutritional_value.html
A154: 2015-06-07 | B154: Breakfast | C154: Turkey, roasted, meat only, enhanced, from whole bird, thigh | D154: 444 | E154: 701.52 | F154: 26.64 | G154: 0 | H154: 115.44 | I154: 0 | J154: 0 | K154: 0 | L154: 71.04 | M154: 4.44 | N154: 0 | O154: http://www.nutritionvalue.org/Turkey%2C_roasted%2C_meat_only%2C_enhanced%2C_from_whole_bird%2C_thigh_nutritional_value.html
A155: 2015-06-07 | B155: Lunch | C155: Turkey, roasted, meat only, enhanced, whole | D155: 999 | E155: 1398.6 | F155: 29.97 | G155: 0 | H155: 269.73 | I155: 0 | J155: 0 | K155: 0 | L155: 139.86 | M155: 6.993 | N155: 0 | O155: http://www.nutritionvalue.org/Turkey%2C_roasted%2C_meat_only%2C_enhanced%2C_whole_nutritional_value.html
A156: 2015-06-08 | B156: Breakfast | C156: BURGER KING, Premium Fish Sandwich | D156: 50 | E156: 130 | F156: 6 | G156: 13.5 | H156: 5 | I156: 0 | J156: 0 | K156: 0 | L156: 18.5 | M156: 0.75 | N156: 0.45 | O156: http://www.nutritionvalue.org/BURGER_KING%2C_Premium_Fish_Sandwich_nutritional_value.html
A157: 2015-06-08 | B157: Lunch | C157: Bread, toasted, egg | D157: 300 | E157: 945 | F157: 18 | G157: 159 | H157: 33 | I157: 0 | J157: 0 | K157: 3 | L157: 306 | M157: 9.9 | N157: 7.5 | O157: http://www.nutritionvalue.org/Bread%2C_toasted%2C_egg_nutritional_value.html
A158: 2015-06-08 | B158: Dinner | C158: Restaurant, breaded and fried, shrimp, family style | D158: 485 | E158: 1493.8 | F158: 92.15 | G158: 106.7 | H158: 63.05 | I158: 0 | J158: 0 | K158: 0 | L158: 203.7 | M158: 5.335 | N158: 7.275 | O158: http://www.nutritionvalue.org/Restaurant%2C_breaded_and_fried%2C_shrimp%2C_family_style_nutritional_value.html
A159: 2015-06-09 | B159: Breakfast | C159: APPLEBEE'S, Double Crunch Shrimp | D159: 444 | E159: 1434.12 | F159: 84.36 | G159: 115.44 | H159: 53.28 | I159: 0 | J159: 0 | K159: 0 | L159: 199.8 | M159: 4.44 | N159: 11.544 | O159: http://www.nutritionvalue.org/APPLEBEE%27S%2C_Double_Crunch_Shrimp_nutritional_value.html
A160: 2015-06-09 | B160: Lunch | C160: Quinoa, uncooked | D160: 200 | E160: 736 | F160: 12 | G160: 128 | H160: 28 | I160: 0 | J160: 0 | K160: 0 | L160: 94 | M160: 9 | N160: 1456 | O160: http://www.nutritionvalue.org/Quinoa%2C_uncooked_nutritional_value.html
A161: 2015-06-09 | B161: Dinner | C161: Restaurant, lasagna with meat, Italian | D161: 278 | E161: 514.3 | F161: 30.58 | G161: 30.58 | H161: 30.58 | I161: 2.78 | J161: 0 | K161: 0 | L161: 547.66 | M161: 1.946 | N161: 4.17 | O161: http://www.nutritionvalue.org/Restaurant%2C_lasagna_with_meat%2C_Italian_nutritional_value.html
A162: 2015-06-10 | B162: Snack | C162: OLIVE GARDEN, lasagna classico | D162: 68 | E162: 125.12 | F162: 7.48 | G162: 6.8 | H162: 7.48 | I162: 0 | J162: 0 | K162: 0 | L162: 143.48 | M162: 0.476 | N162: 1.088 | O162: http://www.nutritionvalue.org/OLIVE_GARDEN%2C_lasagna_classico_nutritional_value.html
A163: 2015-06-10 | B163: Lunch | C163: CARRABBA'S ITALIAN GRILL, spaghetti with meat sauce | D163: 78 | E163: 95.16 | F163: 2.34 | G163: 12.48 | H163: 3.9 | I163: 0 | J163: 0 | K163: 0 | L163: 11.7 | M163: 0.624 | N163: 1.17 | O163: http://www.nutritionvalue.org/CARRABBA%27S_ITALIAN_GRILL%2C_spaghetti_with_meat_sauce_nutritional_value.html
A164: 2015-06-11 | B164: Dinner | C164: Restaurant, spaghetti with meat sauce, Italian | D164: 868 | E164: 1050.28 | F164: 26.04 | G164: 138.88 | H164: 43.4 | I164: 0 | J164: 0 | K164: 0 | L164: 147.56 | M164: 7.812 | N164: 13.888 | O164: http://www.nutritionvalue.org/Restaurant%2C_spaghetti_with_meat_sauce%2C_Italian_nutritional_value.html
A165: 2015-06-11 | B165: Breakfast | C165: OLIVE GARDEN, spaghetti with meat sauce | D165: 230 | E165: 278.3 | F165: 6.9 | G165: 39.1 | H165: 11.5 | I165: 0 | J165: 0 | K165: 0 | L165: 34.5 | M165: 2.3 | N165: 3.91 | O165: http://www.nutritionvalue.org/OLIVE_GARDEN%2C_spaghetti_with_meat_sauce_nutritional_value.html
A166: 2015-06-11 | B166: Snack | C166: CARRABBA'S ITALIAN GRILL, spaghetti with pomodoro sauce | D166: 258 | E166: 268.32 | F166: 2.58 | G166: 49.02 | H166: 7.74 | I166: 0 | J166: 0 | K166: 0 | L166: 43.86 | M166: 1.806 | N166: 4.386 | O166: http://www.nutritionvalue.org/CARRABBA%27S_ITALIAN_GRILL%2C_spaghetti_with_pomodoro_sauce_nutritional_value.html
A167: 2015-06-12 | B167: Lunch | C167: WENDY'S, single, DAVE'S Hot 'N Juicy 1/4 LB | D167: 789 | E167: 2114.52 | F167: 126.24 | G167: 142.02 | H167: 110.46 | I167: 0 | J167: 0 | K167: 0 | L167: 575.97 | M167: 18.147 | N167: 8.679 | O167: http://www.nutritionvalue.org/WENDY%27S%2C_single%2C_DAVE%27S_Hot_%27N_Juicy_1%252F4_LB_nutritional_value.html
A168: 2015-06-12 | B168: Dinner | C168: Vegetable juice cocktail, canned, low sodium | D168: 363 | E168: 68.97 | F168: 0 | G168: 13.794 | H168: 0 | I168: 14.52 | J168: 0 | K168: 0 | L168: 54.45 | M168: 0.726 | N168: 1.815 | O168: http://www.nutritionvalue.org/Vegetable_juice_cocktail%2C_canned%2C_low_sodium_nutritional_value.html
A169: 2015-06-12 | B169: Breakfast | C169: Vegetable juice cocktail, canned | D169: 252 | E169: 47.88 | F169: 0 | G169: 9.828 | H169: 0 | I169: 10.08 | J169: 0 | K169: 0 | L169: 35.28 | M169: 0.504 | N169: 1.26 | O169: http://www.nutritionvalue.org/Vegetable_juice_cocktail%2C_canned_nutritional_value.html
A170: 2015-06-13 | B170: Lunch | C170: Veal, roasted, cooked, separable lean and fat, sirloin | D170: 187 | E170: 377.74 | F170: 18.7 | G170: 0 | H170: 46.75 | I170: 0 | J170: 0 | K170: 0 | L170: 24.31 | M170: 1.683 | N170: 0 | O170: http://www.nutritionvalue.org/Veal%2C_roasted%2C_cooked%2C_separable_lean_and_fat%2C_sirloin_nutritional_value.html
A171: 2015-06-13 | B171: Dinner | C171: Watermelon, raw | D171: 546 | E171: 163.8 | F171: 0 | G171: 41.496 | H171: 0 | I171: 5.46 | J171: 21.84 | K171: 0 | L171: 38.22 | M171: 1.092 | N171: 2.184 | O171: http://www.nutritionvalue.org/Watermelon%2C_raw_nutritional_value.html
A172: 2015-06-16 | B172: Lunch | C172: Veal, raw, separable lean and fat, arm, shoulder | D172: 744 | E172: 982.08 | F172: 37.2 | G172: 0 | H172: 141.36 | I172: 0 | J172: 0 | K172: 0 | L172: 156.24 | M172: 7.44 | N172: 0 | O172: http://www.nutritionvalue.org/Veal%2C_raw%2C_separable_lean_and_fat%2C_arm%2C_shoulder_nutritional_value.html
A173: 2015-06-16 | B173: Dinner | C173: Veal, pan-fried, cooked, ground | D173: 222 | E173: 477.3 | F173: 26.64 | G173: 3.33 | H173: 57.72 | I173: 0 | J173: 0 | K173: 11.1 | L173: 39.96 | M173: 3.33 | N173: 0 | O173: http://www.nutritionvalue.org/Veal%2C_pan-fried%2C_cooked%2C_ground_nutritional_value.html
A174: 2015-06-15 | B174: Breakfast | C174: Turkey, roasted, meat only, enhanced, from whole bird, thigh | D174: 555 | E174: 876.9 | F174: 33.3 | G174: 0 | H174: 144.3 | I174: 0 | J174: 0 | K174: 0 | L174: 88.8 | M174: 5.55 | N174: 0 | O174: http://www.nutritionvalue.org/Turkey%2C_roasted%2C_meat_only%2C_enhanced%2C_from_whole_bird%2C_thigh_nutritional_value.html
A175: 2015-06-15 | B175: Lunch | C175: Turkey, roasted, meat only, enhanced, whole | D175: 333 | E175: 466.2 | F175: 9.99 | G175: 0 | H175: 89.91 | I175: 0 | J175: 0 | K175: 0 | L175: 46.62 | M175: 2.331 | N175: 0 | O175: http://www.nutritionvalue.org/Turkey%2C_roasted%2C_meat_only%2C_enhanced%2C_whole_nutritional_value.html
A176: 2015-06-16 | B176: Breakfast | C176: Cheese, with vegetables, cottage | D176: 231 | E176: 219.45 | F176: 9.24 | G176: 71.61 | H176: 25.41 | I176: 0 | J176: 0 | K176: 0 | L176: 129.36 | M176: 0.231 | N176: 0.231 | O176: http://www.nutritionvalue.org/Cheese%2C_with_vegetables%2C_cottage_nutritional_value.html
A177: 2015-06-16 | B177: Lunch | C177: Macaroni, enriched, dry, vegetable | D177: 565 | E177: 2073.55 | F177: 5.65 | G177: 423.75 | H177: 73.45 | I177: 0 | J177: 0 | K177: 0 | L177: 192.1 | M177: 23.73 | N177: 24.295 | O177: http://www.nutritionvalue.org/Macaroni%2C_enriched%2C_dry%2C_vegetable_nutritional_value.html
A178: 2015-06-16 | B178: Dinner | C178: Egg rolls, prepared, frozen, vegetable | D178: 787 | E178: 1684.18 | F178: 55.09 | G178: 251.84 | H178: 47.22 | I178: 70.83 | J178: 7.87 | K178: 0 | L178: 393.5 | M178: 14.953 | N178: 18.888 | O178: http://www.nutritionvalue.org/Egg_rolls%2C_prepared%2C_frozen%2C_vegetable_nutritional_value.html
A179: 2015-06-17 | B179: Snack | C179: Tomato and vegetable juice, low sodium | D179: 453 | E179: 99.66 | F179: 0 | G179: 20.838 | H179: 0 | I179: 4.53 | J179: 27.18 | K179: 0 | L179: 49.83 | M179: 1.812 | N179: 3.624 | O179: http://www.nutritionvalue.org/Tomato_and_vegetable_juice%2C_low_sodium_nutritional_value.html
A180: 2015-06-17 | B180: Lunch | C180: HEALTHY REQUEST, condensed, Vegetable Soup | D180: 254 | E180: 200.66 | F180: 0 | G180: 40.64 | H180: 7.62 | I180: 0 | J180: 0 | K180: 0 | L180: 40.64 | M180: 1.27 | N180: 6.096 | O180: http://www.nutritionvalue.org/HEALTHY_REQUEST%2C_condensed%2C_Vegetable_Soup_nutritional_value.html
A181: 2015-06-17 | B181: Dinner | C181: KASHI, Fire Roasted Vegetable Crackers, TLC | D181: 785 | E181: 3053.65 | F181: 94.2 | G181: 510.25 | H181: 94.2 | I181: 0 | J181: 0 | K181: 0 | L181: 525.95 | M181: 18.84 | N181: 68.295 | O181: http://www.nutritionvalue.org/KASHI%2C_Fire_Roasted_Vegetable_Crackers%2C_TLC_nutritional_value.html
A182: 2015-06-18 | B182: Breakfast | C182: Restaurant, chicken and vegetables, Chinese | D182: 452 | E182: 429.4 | F182: 18.08 | G182: 24.408 | H182: 36.16 | I182: 13.56 | J182: 18.08 | K182: 0 | L182: 90.4 | M182: 2.26 | N182: 4.068 | O182: http://www.nutritionvalue.org/Restaurant%2C_chicken_and_vegetables%2C_Chinese_nutritional_value.html
A183: 2015-06-18 | B183: Snack | C183: Fast foods, french fried in vegetable oil, potato | D183: 789 | E183: 312 | F183: 15 | G183: 41 | H183: 3 | I183: 0 | J183: 0 | K183: 0 | L183: 18 | M183: 0.8 | N183: 3.8 | O183: http://www.nutritionvalue.org/Fast_foods%2C_french_fried_in_vegetable_oil%2C_potato_nutritional_value.html
A184: 2015-06-18 | B184: Lunch | C184: WORTHINGTON Vegetable Steaks, unprepared, canned | D184: 423 | E184: 477.99 | F184: 4.23 | G184: 21.573 | H184: 88.83 | I184: 0 | J184: 0 | K184: 0 | L184: 25.38 | M184: 16.074 | N184: 9.306 | O184: http://www.nutritionvalue.org/WORTHINGTON_Vegetable_Steaks%2C_unprepared%2C_canned_nutritional_value.html
A185: 2015-06-18 | B185: Dinner | C185: Restaurant, without meat, vegetable lo mein, Chinese | D185: 89 | E185: 107.69 | F185: 1.78 | G185: 17.8 | H185: 3.56 | I185: 0 | J185: 0 | K185: 0 | L185: 18.69 | M185: 0.89 | N185: 1.157 | O185: http://www.nutritionvalue.org/Restaurant%2C_without_meat%2C_vegetable_lo_mein%2C_Chinese_nutritional_value.html
A186: 2015-06-19 | B186: Breakfast | C186: CAMPBELL'S CHUNKY Soups, Beef with Country Vegetables Soup | D186: 343 | E186: 181.79 | F186: 3.43 | G186: 25.382 | H186: 10.29 | I186: 30.87 | J186: 0 | K186: 0 | L186: 27.44 | M186: 1.715 | N186: 4.116 | O186: http://www.nutritionvalue.org/CAMPBELL%27S_CHUNKY_Soups%2C_Beef_with_Country_Vegetables_Soup_nutritional_value.html
A187: 2015-06-20 | B187: Lunch | C187: CAMPBELL'S CHUNKY Soups, Old Fashioned Vegetable Beef Soup | D187: 555 | E187: 271.95 | F187: 5.55 | G187: 34.41 | H187: 16.65 | I187: 11.1 | J187: 0 | K187: 0 | L187: 94.35 | M187: 2.775 | N187: 7.215 | O187: http://www.nutritionvalue.org/CAMPBELL%27S_CHUNKY_Soups%2C_Old_Fashioned_Vegetable_Beef_Soup_nutritional_value.html
A188: 2015-06-20 | B188: Dinner | C188: Snacks, TERRA CHIPS, HAIN CELESTIAL GROUP, vegetable chips | D188: 777 | E188: 4017.09 | F188: 233.1 | G188: 450.66 | H188: 31.08 | I188: 69.93 | J188: 0 | K188: 0 | L188: 613.83 | M188: 12.432 | N188: 885.78 | O188: http://www.nutritionvalue.org/Snacks%2C_TERRA_CHIPS%2C_HAIN_CELESTIAL_GROUP%2C_vegetable_chips_nutritional_value.html
A189: 2015-06-21 | B189: Lunch | C189: CAMPBELL'S, Essential Antioxidants V8, V8 Vegetable Juice | D189: 343 | E189: 72.03 | F189: 0 | G189: 15.435 | H189: 0 | I189: 3.43 | J189: 6.86 | K189: 0 | L189: 54.88 | M189: 1.029 | N189: 2.744 | O189: http://www.nutritionvalue.org/CAMPBELL%27S%2C_Essential_Antioxidants_V8%2C_V8_Vegetable_Juice_nutritional_value.html
A190: 2015-06-21 | B190: Lunch | C190: Pizza, cooked, frozen, rising crust, meat and vegetable topping | D190: 232 | E190: 628.72 | F190: 27.84 | G190: 67.28 | H190: 30.16 | I190: 0 | J190: 0 | K190: 0 | L190: 359.6 | M190: 3.016 | N190: 5.336 | O190: http://www.nutritionvalue.org/Pizza%2C_cooked%2C_frozen%2C_rising_crust%2C_meat_and_vegetable_topping_nutritional_value.html
A191: 2015-06-22 | B191: Breakfast | C191: Restaurant, cheese ravioli with marinara sauce, Italian | D191: 333 | E191: 512.82 | F191: 16.65 | G191: 63.27 | H191: 23.31 | I191: 0 | J191: 0 | K191: 0 | L191: 399.6 | M191: 2.664 | N191: 3.996 | O191: http://www.nutritionvalue.org/Restaurant%2C_cheese_ravioli_with_marinara_sauce%2C_Italian_nutritional_value.html
A192: 2015-06-22 | B192: Lunch | C192: SPAGHETTIOS, SpaghettiOs RavioliOs Beef Ravioli in Meat Sauce | D192: 444 | E192: 470.64 | F192: 13.32 | G192: 66.6 | H192: 17.76 | I192: 0 | J192: 0 | K192: 26.64 | L192: 71.04 | M192: 3.108 | N192: 7.104 | O192: http://www.nutritionvalue.org/SPAGHETTIOS%2C_SpaghettiOs_RavioliOs_Beef_Ravioli_in_Meat_Sauce_nutritional_value.html
A193: 2015-06-22 | B193: Lunch | C193: Ravioli, includes regular and light entrees, not prepared, frozen, cheese with tomato sauce | D193: 232 | E193: 257.52 | F193: 4.64 | G193: 39.44 | H193: 9.28 | I193: 0 | J193: 0 | K193: 0 | L193: 183.28 | M193: 2.088 | N193: 3.248 | O193: http://www.nutritionvalue.org/Ravioli%2C_includes_regular_and_light_entrees%2C_not_prepared%2C_frozen%2C_cheese_with_tomato_sauce_nutritional_value.html
A194: 2015-06-23 | B194: Breakfast | C194: CAMPBELL'S CHUNKY Soups, Beef with Country Vegetables Soup | D194: 343 | E194: 53 | F194: 1 | G194: 7.4 | H194: 3 | I194: 9 | J194: 0 | K194: 0 | L194: 8 | M194: 0.5 | N194: 1.2 | O194: http://www.nutritionvalue.org/CAMPBELL%27S_CHUNKY_Soups%2C_Beef_with_Country_Vegetables_Soup_nutritional_value.html
A195: 2015-06-24 | B195: Lunch | C195: CAMPBELL'S CHUNKY Soups, Old Fashioned Vegetable Beef Soup | D195: 555 | E195: 49 | F195: 1 | G195: 6.2 | H195: 3 | I195: 2 | J195: 0 | K195: 0 | L195: 17 | M195: 0.5 | N195: 1.3 | O195: http://www.nutritionvalue.org/CAMPBELL%27S_CHUNKY_Soups%2C_Old_Fashioned_Vegetable_Beef_Soup_nutritional_value.html
A196: 2015-06-25 | B196: Dinner | C196: Snacks, TERRA CHIPS, HAIN CELESTIAL GROUP, vegetable chips | D196: 777 | E196: 517 | F196: 30 | G196: 58 | H196: 4 | I196: 9 | J196: 0 | K196: 0 | L196: 79 | M196: 1.6 | N196: 114 | O196: http://www.nutritionvalue.org/Snacks%2C_TERRA_CHIPS%2C_HAIN_CELESTIAL_GROUP%2C_vegetable_chips_nutritional_value.html
A197: 2015-06-26 | B197: Lunch | C197: CAMPBELL'S, Essential Antioxidants V8, V8 Vegetable Juice | D197: 343 | E197: 21 | F197: 0 | G197: 4.5 | H197: 0 | I197: 1 | J197: 2 | K197: 0 | L197: 16 | M197: 0.3 | N197: 0.8 | O197: http://www.nutritionvalue.org/CAMPBELL%27S%2C_Essential_Antioxidants_V8%2C_V8_Vegetable_Juice_nutritional_value.html
A198: 2015-06-27 | B198: Lunch | C198: Pizza, cooked, frozen, rising crust, meat and vegetable topping | D198: 232 | E198: 271 | F198: 12 | G198: 29 | H198: 13 | I198: 0 | J198: 0 | K198: 0 | L198: 155 | M198: 1.3 | N198: 2.3 | O198: http://www.nutritionvalue.org/Pizza%2C_cooked%2C_frozen%2C_rising_crust%2C_meat_and_vegetable_topping_nutritional_value.html
A199: 2015-06-28 | B199: Breakfast | C199: Restaurant, cheese ravioli with marinara sauce, Italian | D199: 333 | E199: 154 | F199: 5 | G199: 19 | H199: 7 | I199: 0 | J199: 0 | K199: 0 | L199: 120 | M199: 0.8 | N199: 1.2 | O199: http://www.nutritionvalue.org/Restaurant%2C_cheese_ravioli_with_marinara_sauce%2C_Italian_nutritional_value.html
A200: 2015-06-28 | B200: Lunch | C200: SPAGHETTIOS, SpaghettiOs RavioliOs Beef Ravioli in Meat Sauce | D200: 444 | E200: 106 | F200: 3 | G200: 15 | H200: 4 | I200: 0 | J200: 0 | K200: 6 | L200: 16 | M200: 0.7 | N200: 1.6 | O200: http://www.nutritionvalue.org/SPAGHETTIOS%2C_SpaghettiOs_RavioliOs_Beef_Ravioli_in_Meat_Sauce_nutritional_value.html
A201: 2015-06-29 | B201: Lunch | C201: Ravioli, includes regular and light entrees, not prepared, frozen, cheese with tomato sauce | D201: 232 | E201: 111 | F201: 2 | G201: 17 | H201: 4 | I201: 0 | J201: 0 | K201: 0 | L201: 79 | M201: 0.9 | N201: 1.4 | O201: http://www.nutritionvalue.org/Ravioli%2C_includes_regular_and_light_entrees%2C_not_prepared%2C_frozen%2C_cheese_with_tomato_sauce_nutritional_value.html

Sheet WEEKLY LOG
A1: Weekly Averages Per Day
A4: GOALS | B4: ='MY PROFILE'!F8 -> 2533 | C4: ='MY PROFILE'!F10 -> 0.2 | D4: ='MY PROFILE'!F12 -> 0.45 | E4: ='MY PROFILE'!F14 -> 0.35 | F4: ='MY PROFILE'!F16 -> 900 | G4: ='MY PROFILE'!F18 -> 90 | H4: ='MY PROFILE'!F20 -> 5 | I4: ='MY PROFILE'!F22 -> 1000 | J4: ='MY PROFILE'!F24 -> 8 | K4: ='MY PROFILE'!F26 -> 38
A5: RESULTS | B5: =AVERAGE(B8:B4000) -> 1349.544796 | C5: =(AVERAGE(C8:C4000)) -> 0.3407141534 | D5: =(AVERAGE(D8:D4000)) -> 0.4358933907 | E5: 0.211983067 | F5: =(AVERAGE(F8:F4000)) -> 8.721632653 | G5: 3.531020408 | H5: 2.326326531 | I5: 294.7242857 | J5: 9.366214286 | K5: 233.3208571
A6: COMPARE | B6: =AVERAGE(B9:B4001)-B4 -> -1183.455204 | C6: =(AVERAGE(C9:C4001))-C4 -> 0.1407141534 | D6: =(AVERAGE(D9:D4001))-D4 -> -0.01410660932 | E6: =(AVERAGE(E9:E4001))-E4 -> -0.138016933 | F6: =(AVERAGE(F9:F4001))-F4 -> -891.2783673 | G6: =(AVERAGE(G9:G4001))-G4 -> -86.46897959 | H6: -2.673673469 | I6: -705.2757143 | J6: 1.366214286 | K6: 195.3208571
A8: WEEK | B8: CALORIES | C8: FAT (g) | D8: CARB (g) | E8: PROTEIN (g) | F8: VIT A (IU) | G8: VIT C (mg) | H8: VIT D (IU) | I8: CALCIUM (mg) | J8: IRON (mg) | K8: FIBER (g)
A9: 14 | B9: 1259.035714 | C9: 0.3492979321 | D9: 0.4649317789 | E9: 0.1723722804 | F9: 1.285714286 | G9: 0 | H9: 0.2142857143 | I9: 338.6414286 | J9: 9.682857143 | K9: 643.8695714
A10: 15 | B10: 1818.755714 | C10: 0.3544778259 | D10: 0.2753200972 | E10: 0.3451716205 | F10: 2.79 | G10: 4.497142857 | H10: 4.392857143 | I10: 341.89 | J10: 11.30442857 | K10: 216.5198571
A11: 16 | B11: 2033.374286 | C11: 0.2879141076 | D11: 0.45924424 | E11: 0.2725799902 | F11: 16.99714286 | G11: 10.71 | H11: 1.585714286 | I11: 363.3857143 | J11: 17.38042857 | K11: 21.95685714
A12: 17 | B12: 1004.508571 | C12: 0.4307394092 | D12: 0.4744762186 | E12: 0.08449334145 | F12: 19.33285714 | G12: 0.98 | H12: 3.805714286 | I12: 272.5742857 | J12: 4.489571429 | K12: 148.0055714
A13: 18 | B13: 939.2457143 | C13: 0.351665166 | D13: 0.4802637983 | E13: 0.1647705149 | F13: 0.8571428571 | G13: 0.2857142857 | H13: 1.071428571 | I13: 301.7928571 | J13: 7.074285714 | K13: 798.1402857
A14: 19 | B14: 2020.092857 | C14: 0.3803248083 | D14: 0.2691884744 | E14: 0.3320328273 | F14: 3.504285714 | G14: 4.511428571 | H14: 4.392857143 | I14: 381.3271429 | J14: 13.275 | K14: 231.5332857
A15: 20 | B15: 1654.551429 | C15: 0.285606975 | D15: 0.460775385 | E15: 0.2977449218 | F15: 14.57 | G15: 4.245714286 | H15: 1.585714286 | I15: 314.16 | J15: 13.42242857 | K15: 11.97071429
A16: 21 | B16: 1778.102857 | C16: 0.3195588878 | D16: 0.5041668809 | E16: 0.1208029103 | F16: 20.50285714 | G16: 7.445714286 | H16: 3.807142857 | I16: 371.8771429 | J16: 10.19785714 | K16: 145.5868571
A17: 22 | B17: 175.5714286 | C17: 0.3881204231 | D17: 0.4839707079 | E17: 0.113913751 | F17: 1.714285714 | G17: 0.2857142857 | H17: 0.8571428571 | I17: 68.85714286 | J17: 0.8714285714 | K17: 17.51428571
A18: 23 | B18: 1767.717143 | C18: 0.362537801 | D18: 0.3559667756 | E18: 0.2606460956 | F18: 3.678571429 | G18: 4.497142857 | H18: 4.178571429 | I18: 400.2942857 | J18: 13.01271429 | K18: 644.4778571
A19: 24 | B19: 1706.204286 | C19: 0.369225591 | D19: 0.3371353121 | E19: 0.2777460076 | F19: 4.691428571 | G19: 3.12 | H19: 0.4285714286 | I19: 384.27 | J19: 11.13914286 | K19: 217.9027143
A20: 25 | B20: 2275.934286 | C20: 0.3121054211 | D20: 0.4864541658 | E20: 0.2186254436 | F20: 28.68857143 | G20: 7.59 | H20: 1.585714286 | I20: 364.4414286 | J20: 16.63328571 | K20: 148.1244286
A21: 26 | B21: 407.5328571 | C21: 0.335836199 | D21: 0.5007484059 | E21: 0.1451381659 | F21: 3.49 | G21: 1.265714286 | H21: 3.805714286 | I21: 191.9142857 | J21: 2.300714286 | K21: 20.28971429
A22: 27 | B22: 53 | C22: 0.2425876011 | D22: 0.5498652291 | E22: 0.1617250674 | F22: 0 | G22: 0 | H22: 0.8571428571 | I22: 30.71428571 | J22: 0.3428571429 | K22: 0.6

Sheet MONTHLY LOG
A1: Monthly Averages Per Day
A4: GOALS | B4: ='MY PROFILE'!F8 -> 2533 | C4: ='MY PROFILE'!F10 -> 0.2 | D4: ='MY PROFILE'!F12 -> 0.45 | E4: ='MY PROFILE'!F14 -> 0.35 | F4: ='MY PROFILE'!F16 -> 900 | G4: ='MY PROFILE'!F18 -> 90 | H4: ='MY PROFILE'!F20 -> 5 | I4: ='MY PROFILE'!F22 -> 1000 | J4: ='MY PROFILE'!F24 -> 8 | K4: ='MY PROFILE'!F26 -> 38
A5: RESULTS | B5: =AVERAGE(B8:B4000) -> 678.2327692 | C5: =(AVERAGE(C8:C4000)) -> 0.3409678639 | D5: =(AVERAGE(D8:D4000)) -> 0.4117267132 | E5: 0.2401613627 | F5: =(AVERAGE(F8:F4000)) -> 4.383179487 | G5: 1.774564103 | H5: 1.169128205 | I5: 148.1178462 | J5: 4.707123077 | K5: 117.2586872
A6: COMPARE | B6: =AVERAGE(B9:B4001)-B4 -> -1854.767231 | C6: =(AVERAGE(C9:C4001))-C4 -> 0.1409678639 | D6: =(AVERAGE(D9:D4001))-D4 -> -0.03827328683 | E6: =(AVERAGE(E9:E4001))-E4 -> -0.1098386373 | F6: =(AVERAGE(F9:F4001))-F4 -> -895.6168205 | G6: -88.2254359 | H6: -3.830871795 | I6: -851.8821538 | J6: -3.292876923 | K6: 79.25868718
A8: MONTH | B8: CALORIES | C8: FAT (g) | D8: CARB (g) | E8: PROTEIN (g) | F8: VIT A (IU) | G8: VIT C (mg) | H8: VIT D (IU) | I8: CALCIUM (mg) | J8: IRON (mg) | K8: FIBER (g)
A9: 4 | B9: 668.8110769 | C9: 0.3431172469 | D9: 0.4097686089 | E9: 0.2415206594 | F9: 4.366769231 | G9: 1.774 | H9: 1.169076923 | I9: 147.7144615 | J9: 4.676938462 | K9: 111.0732769
A10: 5 | B10: 697.0761538 | C10: 0.3366690981 | D10: 0.4156429217 | E10: 0.2374427692 | F10: 4.416 | G10: 1.775692308 | H10: 1.169230769 | I10: 148.9246154 | J10: 4.767492308 | K10: 129.6295077
A11: 6 | B11: 668.8110769 | C11: 0.3431172469 | D11: 0.4097686089 | E11: 0.2415206594 | F11: 4.366769231 | G11: 1.774 | H11: 1.169076923 | I11: 147.7144615 | J11: 4.676938462 | K11: 111.0732769
